{"text_format":"3","workbook":"xlsx","n_sheets":14,"sheets":["CAPTURA","CHEQUE CORTO","CHEQUE NVO","Orden sin recibo","orden con recibo","PAGARE","REGISTRO DE CHEQUES","CONCEPTO DE CHEQUE CHICO","PROVEEDORES","Transfer","Orden sin recibo TRANS","orden con recibo MODF","Hoja1","Hoja2"],"not_rendered":{"macros":1,"external_links":3,"defined_names":43,"comments":2},"read":"whole","date_system":"1900"}

{"sheet":"CAPTURA","index":0,"n_rows":18,"n_cols":3,"rows_kept":18}
[]
[]
[]
[null,"CHEQUE",1516]
[null,"FECHA","2019-10-14"]
[null,"NOMBRE","EMILIO GONZALEZ DELGADILLO"]
[null,"CANTIDAD",{"v":36120.2,"d":"36,120.20"}]
[null,"CONCEPTO","COMPLEMENTO DE NOMINA CORREPONDIENTE A PRIMER QUINCENA DEL MES DE OCTUBRE DE 2019 ( PERSONAL QUE NO CUENTA CON TARJETA DE COBRO)"]
[null,"OBSERVACIONES"]
[null,"DEPARTAMENTO"]
[]
[]
[]
[]
[null,null,"                                                                      "]
[]
[]
[null,null," "]

{"sheet":"CHEQUE CORTO","index":1,"n_rows":25,"n_cols":3,"rows_kept":25,"merged":[[1,0,1,1],[2,0,2,3],[5,0,5,1],[16,0,16,1],[17,0,17,3],[20,0,20,1]]}
[" ",null,{"$f":"+CAPTURA!C5","v":"2019-10-14"}]
[{"$f":"+CAPTURA!C6","v":"EMILIO GONZALEZ DELGADILLO"},null,{"$f":"+CAPTURA!C7","v":{"v":36120.2,"d":"36,120.20"}}]
[{"$f":"PesosMN(C2)","v":"( TREINTA Y SEIS MIL CIENTO VEINTE PESOS 20/100 M.N.)"}]
[" "]
[null,"  "]
[{"$f":"+CAPTURA!C8","v":"COMPLEMENTO DE NOMINA CORREPONDIENTE A PRIMER QUINCENA DEL MES DE OCTUBRE DE 2019 ( PERSONAL QUE NO CUENTA CON TARJETA DE COBRO)"}]
[]
[]
[" "]
[null,{"$f":"A2","v":"EMILIO GONZALEZ DELGADILLO"}]
[null,null,{"$f":"+C2","v":{"v":36120.2,"d":"36,120.20"}}]
[null,{"$f":"+CAPTURA!C4","v":1516}]
[]
[]
[]
[]
[]
[" "]
[]
[]
[]
[]
[]
[]
[null,null,{"$f":"+C11","v":36120.2}]

{"sheet":"CHEQUE NVO","index":2,"n_rows":42,"n_cols":11,"rows_kept":42,"merged":[[0,1,0,2],[1,0,1,1],[2,0,2,3],[6,1,6,2],[7,0,7,1],[8,0,8,3],[14,0,16,0]]}
[null,{"$f":"+CAPTURA!C5","v":"2019-10-14"}]
[{"$f":"+CAPTURA!C6","v":"EMILIO GONZALEZ DELGADILLO"},null,{"$f":"+CAPTURA!C7","v":{"v":36120.2,"d":"36,120.20"}}]
[{"$f":"PesosMN(C2)","v":"( TREINTA Y SEIS MIL CIENTO VEINTE PESOS 20/100 M.N.)"}]
[" "]
[]
[" "]
[null,{"$f":"B1","v":"2019-10-14"}]
[{"$f":"A2","v":"EMILIO GONZALEZ DELGADILLO"},null,{"$f":"C2","v":{"v":36120.2,"d":"36,120.20"}}]
[{"$f":"PesosMN(C8)","v":"( TREINTA Y SEIS MIL CIENTO VEINTE PESOS 20/100 M.N.)"}]
[null,"CHEQUE",{"$nulls":8}," "]
[null,{"$f":"+CAPTURA!C4","v":1516}]
[]
[]
[]
[]
[]
[]
[{"$f":"+CAPTURA!C8","v":"COMPLEMENTO DE NOMINA CORREPONDIENTE A PRIMER QUINCENA DEL MES DE OCTUBRE DE 2019 ( PERSONAL QUE NO CUENTA CON TARJETA DE COBRO)"}]
{"$rows_empty":10}
[{"$f":"+A2","v":"EMILIO GONZALEZ DELGADILLO"},null,{"$f":"+C2","v":{"v":36120.2,"d":"36,120.20"}}]
{"$rows_empty":12}
[null,null,{"$f":"+C29","v":{"v":36120.2,"d":"36,120.20"}}]

{"sheet":"Orden sin recibo","index":3,"n_rows":38,"n_cols":76,"rows_kept":38,"merged":[[5,10,6,10],[12,2,12,7],[16,2,16,7],[34,2,34,3],[34,5,34,7]]}
[]
[]
[]
[]
[]
[{"$nulls":3},"                                                                                          ",{"$nulls":6},"Numero de Cheque"]
[]
[{"$nulls":10},566]
[null,null,"                                           ",null," "]
[null,null,"      "]
[null,null,"                                                                                                                                                                                                                                                                                                                                                                                                                                                                                                                                                                                 "]
[null,"                                         ",{"$nulls":4},"      ",{"$f":"+VLOOKUP(F26,'REGISTRO DE CHEQUES'!A1:G4916,4,FALSE)","v":{"$error":"#N/A"}}]
[null,null,{"$f":"PesosMN(H12)","v":{"$error":"#VALUE!"}}]
[null,null,"                            ",null," "]
[null,"                        ","      ","                                 "," ",null,null," "]
[]
[null,null,{"$f":"+VLOOKUP(F26,'REGISTRO DE CHEQUES'!A1:G4916,5,FALSE)","v":{"$error":"#N/A"}}]
[{"$nulls":75},"Z"]
["  "]
[null,null,"            "]
[null,null,"      ",null," "]
[null,null,"     "]
[null,null,"                        "]
[null,null,"     "," "]
[null,null,"               ",null,null,"            "]
[null,null,"     ","CHEQUE",null,{"$f":"+VLOOKUP(K8,'REGISTRO DE CHEQUES'!A1:G4916,1,FALSE)","v":{"$error":"#N/A"}}]
[{"$nulls":4}," "]
[null,null,"      "," ",null," ",null,"                                                                                                                                                                                                                                                                                                                                                                         "]
[null,null,"     "]
[null,null,"      "]
[null,null,"       "]
[null,null,"      "]
[null,null,"      ",null,null," "]
[null,null,"                                  ",{"$nulls":4}," "]
[null,null,"IXTLAHUACAN DE LOS MEMBRILLOS, JAL. ",null,null,{"$f":"+VLOOKUP(F26,'REGISTRO DE CHEQUES'!A1:G4916,2,FALSE)","v":{"$error":"#N/A"}}]
[null,null,"          "]
[]
["LIC. ANTONIO COVARRUBIAS MEJIA"]

{"sheet":"orden con recibo","index":4,"n_rows":43,"n_cols":9,"rows_kept":43,"merged":[[1,8,2,8],[9,1,9,6],[14,0,14,3],[19,5,19,6],[20,5,20,6],[27,5,27,6],[28,1,28,6],[29,1,29,6],[31,3,31,6],[33,2,33,6],[35,1,35,6],[39,0,39,3],[39,4,39,5],[42,3,42,5]]}
[]
[{"$nulls":8},"Numero de Cheque"]
[]
[{"$nulls":8},566]
[]
[]
[{"$nulls":4},{"$f":"+VLOOKUP(E23,'REGISTRO DE CHEQUES'!A1:G4916,3,FALSE)","v":{"$error":"#N/A"}}]
[]
[{"$nulls":5},{"$f":"+VLOOKUP(E23,'REGISTRO DE CHEQUES'!A1:G4916,4,FALSE)","v":{"$error":"#N/A"}}]
[null,{"$f":"PesosMN(F9)","v":{"$error":"#VALUE!"}}]
[]
[{"$nulls":4},"  "]
[]
[]
["IXTLAHUACAN DE LOS MEMBRILLOS ",{"$nulls":4},{"$f":"+VLOOKUP(E23,'REGISTRO DE CHEQUES'!A1:G4916,2,FALSE)","v":{"$error":"#N/A"}}]
[]
[]
[]
[]
[]
["LIC. ANTONIO COVARRUBIAS MEJIA"]
[]
[{"$nulls":4},{"$f":"+VLOOKUP(I4,'REGISTRO DE CHEQUES'!A1:G4916,1,FALSE)","v":{"$error":"#N/A"}}]
[]
[]
[]
[{"$nulls":5},{"$f":"F9","v":{"$error":"#N/A"}}]
[]
[null,"IXTLAHUACAN DE LOS MEMBRILLOS, JALISCO"]
[]
[null,null," "]
[null,{"$f":"F9","v":{"$error":"#N/A"}},null,{"$f":"B10","v":{"$error":"#VALUE!"}}]
[]
[]
[]
[null,{"$f":"+VLOOKUP(E23,'REGISTRO DE CHEQUES'!A1:G4916,5,FALSE)","v":{"$error":"#N/A"}}]
[]
[]
[]
["IXTLAHUACAN DE LOS MEMBRILLOS",{"$nulls":3},{"$f":"+F15","v":{"$error":"#N/A"}}]
["  "]
[]
[{"$nulls":3},{"$f":"E7","v":{"$error":"#N/A"}}]

{"sheet":"PAGARE","index":5,"n_rows":11,"n_cols":15,"rows_kept":11,"merged":[[1,0,1,1],[1,4,1,9],[1,12,1,14],[2,7,2,8],[2,13,2,14],[3,2,3,10],[5,0,5,14],[7,2,7,8],[7,10,7,13],[8,1,8,6],[8,7,8,14],[9,1,9,9],[10,1,10,6]]}
[]
[{"$nulls":4},{"$f":"+CAPTURA!C4","v":1516},{"$nulls":7},{"$f":"+CAPTURA!C7","v":{"v":36120.2,"d":"36,120.20"}}]
[]
[null,null,"SISTEMA ADMINISTRATIVO DE AGUA POTABLE Y ALCANTARILLADO "]
[]
[{"$f":"PesosMN(M2)","v":"( TREINTA Y SEIS MIL CIENTO VEINTE PESOS 20/100 M.N.)"}]
[]
[null,null,"IXTLAHUACAN DE LOS MEMBRILLOS ",{"$nulls":6},{"$f":"+DAY(CAPTURA!C5)","v":14},{"$f":"TEXT(CAPTURA!C5,\"MMMM\")","v":"octubre"},{"$nulls":3},{"$f":"+YEAR(CAPTURA!C5)","v":2019}]
[null,{"$f":"+CAPTURA!C6","v":"EMILIO GONZALEZ DELGADILLO"}]
[null,{"$f":"+CAPTURA!C9","v":0}]
[null,{"$f":"+CAPTURA!C10","v":0}]

{"sheet":"REGISTRO DE CHEQUES","index":6,"n_rows":614,"n_cols":7,"rows_kept":614}
[null,"FECHA","NOMBRE","CANTIDAD","CONCEPTO","OBSERVACIONES","DEPARTAMENTO"]
[1152,"09 DE ENERO DE 2019","ALEJANDRO MARIA LAZCANO",{"v":1000,"d":"$1,000.00"},"PRESTAMO PERSONAL EMPLEADO (SAMAPA)"]
[1153,"09 DE ENERO DE 2019","JOSE MANUEL SANCHES TEUTLE",{"v":3000,"d":"$3,000.00"},"PRESTAMO PERSONAL A  EMPLEADO (SAMAPA)"]
[1154,"09 DE ENERO DE 2019","MIGUEL GUTIERREZ LOZANO",{"v":4500,"d":"$4,500.00"},"DEPOSITO Y 2 MESES DE RENTA DE LOCAL PARA OFICINA SAMAPA EN LA LOCALIDAD LA CAPILLA"]
[1155,"09 DE ENERO DE 2019","JOSE ANTONIO CONTRERAS LOPEZ",{"v":800,"d":"$800.00"},"TRABAJO DE SOLDADURA EN TUBO DE LINEA DE AGUA DE POZO BUENAVISTA-CEDROS"]
[1156,"09 DE ENERO DE 2019","JOSE ANTONIO CONTRERAS LOPEZ",{"v":1840,"d":"$1,840.00"},"TRABAJO DE SOLDADURA EN TUBO DE DRENAJE QUE PASA DEBAJO DEL PUENTE DE CALLE JAVIER MINA EN IXTLAHUACAN"]
[1157,"09 DE ENERO DE 2019","CESAR EUGENIO BLANCARTE MENDEZ",{"v":1800,"d":"$1,800.00"},"14 MTS CUBICOS  DE JAL PARA REPARACION DE FUGAS EN LA LOCALIDAD DE BUENAVISTA"]
[1158,"09 DE ENERO DE 2019","EMILIO GONZALEZ DELGADILLO",{"v":6000,"d":"$6,000.00"},"PRESTAMO PERSONAL A EMPLEADO SAMAPA"]
[1159,"10 DE ENERO DE 2019","EMILIO GONZALEZ DELGADILLO","CANCELADO","PRESTAMO PERSONAL A EMPLEADO SAMAPA"]
[1160,"10 DE ENERO DE 2019","EMILIO GONZALEZ DELGADILLO",{"v":1719.8,"d":"$1,719.80"},"GASTOS A COMPROBAR (ACCESORIOS PARA VEHICULO FORD AZUL ASIGNADO A SAMAPA)"]
[1161,"11 DE ENERO DE 2019","JOSE RAMON MENDEZ GUTIERREZ",{"v":3000,"d":"$3,000.00"},"PRESTAMO PERSONAL A EMPLEADO SAMAPA"]
[1162,"11 DE ENERO DE 2019","EMILIO GONZALEZ DELGADILLO",{"v":5400.1,"d":"$5,400.10"},"GASTOS A COMPROBAR ( PAPELERIA Y ACCESORIOS PARA OFICINAS SAMAPA)"]
[1163,"11 DE ENERO DE 2019","JESUS ALEJANDRO FLORES BERNARDO",{"v":921,"d":"$921.00"},"GASTOS A COMPROBAR ( HERRAMIENTAS PARA CUADRILLA SAMAPA)"]
[1164,"11 DE ENERO DE 2019","JESUS ALEJANDRO FLORES BERNARDO",{"v":1043.97,"d":"$1,043.97"},"GASTOS A COMPROBAR FACTURAS REFERIDAS EN ADEFAS 2018 (  PAPELERIA PARA OFICINAS SAMAPA)"]
[1165,"11 DE ENERO DE 2019","TUBERIAS Y CONEXIONES DEL LAGO SA DE CV",{"v":13802.16,"d":"$13,802.16"},"FACTURA REFERIDA EN ADEFAS 2018 CON FOLIO # 5626 ( MATERIAL SOLICITADO PARA ALMACEN Y CUDRILLAS SAMAPA)"]
[1166,"11 DE ENERO DE 2019","IRENE CERVANTES MANDUJANO",{"v":17719,"d":"$17,719.00"},"FACTURA REFERIDA EN ADEFAS 2018 CON FOLIO # 12244 ( 3,250 KGM DE HIPOCLORITO DE SODIO AL 13 % PARA LAS DIFRENTES FUENTES DE ABASTECIMIENTO DE AGUA POTABLE DEL MUNICIPIO )"]
[1167,"11 DE ENERO DE 2019","PAULINA AGUILAR ENCISO",{"v":4000,"d":"$4,000.00"},"PRESTAMO PERSONAL A EMPLEADO SAMAPA"]
[1168,"11 DE ENERO DE 2019","JORGE ANDRES MANCILLA CASTILLO",{"v":7398.39,"d":"$7,398.39"},"2 TONER, 1 FRASCO DE TINTA Y DERVICIO TECNICO DE MANTENIMIENTO A 2 IMPRESORAS"]
[1169,"14 DE ENERO DE 2019","JESUS ALEJANDRO FLORES BERNARDO",{"v":13420.2,"d":"$13,420.20"},"COMPLEMENTO DE NOMINA CORRESPONDIENTE A PRIMER QUINCENA DE ENERO 2019 ( PERSONAL QUE NO CUENTA CON TARJETA DE COBRO)"]
[1170,"14 DE ENERO DE 2019","JESUS ALEJANDRO FLORES BERNARDO","CANCELADO","COMPLEMENTO DE NOMINA CORRESPONDIENTE A PRIMER QUINCENA DE ENERO 2019 ( PERSONAL QUE NO CUENTA CON TARJETA DE COBRO)"]
[1171,"15 DE ENERO DE 2019","ALBERTO HERNANDEZ VELAZQUEZ",{"v":28420,"d":"$28,420.00"},"175 METROS DE CABLE SUMERGIBLE PARA POZO 1 PROFUNDO DE LA LOCALIDA DE LA CAPILLA"]
[1172,"15 DE ENERO DE 2019","EMILIO GONZALEZ DELGADILLO",{"v":2800,"d":"$2,800.00"},"GASTOS A COMPROBAR ( 4 LATAS DE ACEITE HIDRAULICO MEXLUB, PARA PERFORACION DE POZO EN LA LOCALIDAD DE LAS AGUILILLAS"]
[1173,"15 DE ENERO DE 2019","EMILIO GONZALEZ DELGADILLO",{"v":402.04,"d":"$402.04"},"GASTOS A COMPROBAR ( CONEXIÓN PRENSADA MACHO DE 1\" NTP PARA CAMION TIPO VACTOR)"]
[1174,"15 DE ENERO DE 2019","CLAUDIA DEL CARMEN SANCHEZ GARCIA",{"v":1500,"d":"$1,500.00"},"PAGO A PERSONA DE LABORES DE REQUERIMIENTO, 1ra. QUINCENA DE ENERO 2019"]
[1175,"15 DE ENERO DE 2019","JOSE CARLOS ALVAREZ NAJAR",{"v":2000,"d":"$2,000.00"},"PAGO A OPERADOR DE PTAR OLIVOS I, CORRESPONDIENTE A PRIMER QUINCENA DE ENERO 2019"]
[1176,"15 DE ENERO DE 2019","ELICEO GOMEZ PELESTOR",{"v":750,"d":"$750.00"},"CAMARA Y CORBATA PARA CAMION TIPO VACTOR"]
[1177,"18 DE ENERO DE 2019","FRANCISCO JAVIER HERRERA ENCISO",{"v":2152.96,"d":"$2,152.96"},"ACEITES Y ACCESORIOS PARA VEHICULOS SAMAPA"]
[1178,"18 DE ENERO DE 2019","SERGIO HERRERA ENCISO",{"v":16654.12,"d":"$16,654.12"},"MATERIAL SOLICITADO PARA ALMACEN Y LAS DIFERENTES CUADRILLAS SAMAPA"]
[1179,"18 DE ENERO DE 2019","FRANCISCO CORTES SANDOVAL",{"v":12200,"d":"$12,200.00"},"1 DESBROZADORA Y HERRAMIENTAS MANUALES DE JARDINERIA AGRICULTURA Y FORESTACION PARA CUADRILLAS SAMAPA"]
[1180,"21 DE ENERO DE 2019","JORGE ANDRES MANCILLA CASTILLO",{"v":17214.32,"d":"$17,214.32"},"TINTAS PARA LAS DIFERENTES IMPRESORAS DE OFICINAS SAMAPA, TARJETEROS METALICOS PARA TARJETAS CHECADORAS, TARJETAS Y RELOJ ELECTRONICO AMANO PARA CHECAR."]
[1181,"21 DE ENERO DE 2019","JOSE ROBERTO NAVARRO LAZCANO",{"v":4000,"d":"$4,000.00"},"PRESTAMO PERSONAL A EMPLEADO SAMAPA"]
[1182,"22 DE ENERO DE 2019","CFE SUMINISTRADOR DE SERVICIOS BASICOS ",{"v":2700000,"d":"$2,700,000.00"},"PAGO DE ENERGIA ELECTRICA CORRESPONDIENTE AL MES DE NOVIEMBRE Y DICIEMBRE 2018 "]
[1183,"22 DE ENERO DE 2019","JORGE ANDRES MANCILLA CASTILLO",{"v":3364,"d":"$3,364.00"},"2 TONER SAMSUNG G M4072U EXTRA ALTO REND, PARA IMPRESORAS DE OFICINAS SAMAPA"]
[1184,"22 DE ENERO DE 2019","EMILIO GONZALEZ DELGADILLO",{"v":10495.15,"d":"$10,495.15"},"GASTOS A COMPROBAR ( COMBUSTIBLE PARA VEHICULOS ASIGNADOS A SAMAPA)"]
[1185,"22 DE ENERO DE 2019","MARCO ANTONIO RAMIREZ BRAVO",{"v":6264,"d":"$6,264.00"},"12 HORAS DE SERVICIO DE RETROEXCAVADORA PARA  CONEXIÓN DE LINEA DE AGUA LA CAPILLA"]
[1186,"22 DE ENERO DE 2019","JESUS ALEJANDRO FLORES BERNARDO",{"v":1199.02,"d":"$1,199.02"},"GASTOS A COMPROBAR ( PAGO DE TELEFONIA POR CABLE E INTERNET) CORRESPONDIENTE AL MES DE ENERO 2019"]
[1187,"22 DE ENERO DE 2019","JESUS ALEJANDRO FLORES BERNARDO",{"v":800,"d":"$800.00"},"GASTOS A COMPROBAR ( AMORTUGUADOR TRASERO Y PORTA SPROCK  DE MOTOCICLETA ASIGNADA A SAMAPA)"]
[1188,"22 DE ENERO DE 2019","EMILIO GONZALEZ DELGADILLO",{"v":464,"d":"$464.00"},"GASTOS A COMPROBAR ( ACCESORIO PARA VACTOR)"]
[1189,"23 DE ENERO DE 2019","AUTOS QUE INZPIRAN S.A. DE C.V. ",{"v":189000,"d":"$189,000.00"},"ADQUISICIÓN DE VEHICULO NISSAN ESTAQUITAS MOD. 2014 PARA CUADRILLAS SAMAPA"]
[1190,"23 DE ENERO DE 2019","JORGE ANDRES MANCILLA CASTILLO",{"v":892.78,"d":"$892.78"},"TONER SAMSUNG G M-2875 ALTO RENDIMIENTO "]
[1191,"24 DE ENERO DE 2019","EMILIO GONZALEZ DELGADILLO",{"v":80000,"d":"$80,000.00"},"GASTOS A COMPROBAR (ANTICIPO DE LA SUSTITUCION DE POZO DE LA LOCALIDAD DE LAS AGUILILLAS)"]
[1192,"24 DE ENERO DE 2019","JOSE CARLOS ALVAREZ NAJAR",{"v":1500,"d":"$1,500.00"},"PRESTAMO PERSONAL A EMPLEADO SAMAPA"]
[1193,"25 DE ENERO DE 2019","IRENE CERVANTES MANDUJANO",{"v":13630,"d":"$13,630.00"},"2,500 KGM DE HIPOCLORITO DE SODIO AL 13%, PARA LAS DIFERENTES FUENTES DE ABASTECIMIENTO DE AGUA POTABLE DEL MUNICIPIO"]
[1194,"25 DE ENERO DE 2019","MARIA TERESA RAMIREZ ROSAS",{"v":3185.86,"d":"$3,185.86"},"PINTURA Y ACCESORIOS PARA MANTENIMIENTO EN LAS DIFERENTES LOCALIDADES DEL MUNICIPIO"]
[1195,"25 DE ENERO DE 2019","ALBERTO HERNANDEZ VELAZQUEZ",{"v":5452,"d":"$5,452.00"},"CAMBIO DE ROTULA Y MANGUERA A PIPA TIPO VACTOR ASIGNADO A SAMAPA"]
[1196,"28 DE ENERO DE 2019","JOSE ALONSO ANDALON MONTES","CANCELADO","PRESTAMO PERSONAL A EMPLEADO SAMAPA"]
[1197,"28 DE ENERO DE 2019","JOSE ALONSO ANDALON MONTES",{"v":4000,"d":"$4,000.00"},"PRESTAMO PERSONAL A EMPLEADO SAMAPA"]
[1198,"29 DE ENERO DE 2019","EMILIO GONZALEZ DELGADILLO",{"v":7687,"d":"$7,687.00"},"GASTOS A COMPROBAR ( PAGO DE REFRENDO Y CAMBIO DE PROPIETARIO DE VEHICULO NISSAN)"]
[1199,"29 DE ENERO DE 2019","EMILIO GONZALEZ DELGADILLO",{"v":18726.6,"d":"$18,726.60"},"COMPLEMENTO DE NOMINA CORRESPONDIENTE A SEGUNDA QUINCENE DE ENERO 2019 (PERSONAL QUE NO CUENTA CON TARJETA DE COBRO)"]
[1200,"29 DE ENERO DE 2019","RIVERA TORRES JESSICA MONTSERRAT",{"v":11513.35,"d":"$11,513.35"},"TRASLADO DE GRUA Y PERSONAL PARA REALIZAR TRABAJO DE DESINSTALACION DE EQUIPO DE BOMBEO DAÑADO CON COLUMNA DE 4 DE DIAMETRO SUMINISTRO DE UN CUERPO HIDRAULICO Y LA COMPRA DE BOMBA MODELO KOR 20 R 500-13 Y MUFA ELECTRICA, ESTO EN POZO 2 DE LA LOCALIDAD DE LA CAPILLA."]
[1201,"29 DE ENERO DE 2019","RIVERA TORRES JESSICA MONTSERRAT","CANCELADO","DESAZOLVE DE POZO PROFUNDO, MUFA ELECTRICA E INSTALACION DE EQUIPO DE BOMBEO EN POZO 1 DE LA CAPILLA."]
[1202,"29 DE ENERO DE 2019","RIVERA TORRES JESSICA MONTSERRAT",{"v":49996,"d":"$49,996.00"},"INSTALACION Y MANO DE OBRA DE SUMINISTRO DE UN RELEVADOR ELECTRONICO TERMO MAGNETICO DE 50 A 200 AMPERES. EN POZO DE FRACCIONAMIENTO OLIVOS II"]
[1203,"29 DE ENERO DE 2019","RIVERA TORRES JESSICA MONTSERRAT",{"v":8874,"d":"$8,874.00"}," INSTALACION Y SUMINISTRO DE UN MONITOR DE FALLA DE FACE EN POZO 2 DE LA CAPILLA"]
[1204,"29 DE ENERO DE 2019","RIVERA TORRES JESSICA MONTSERRAT",{"v":68402.53,"d":"$68,402.53"},"DESINSTALACION DE EQUIPO DE BOMBEO DAÑADO CON COLUMNA DE 82 DE DIAMETRO, INSTALACION DE BOMBA MODELO 475 s 750-8 MARCA GRUNDFOS Y MUFA ELECTRICA, EN POZO DE LA ESCUELA ESPECIAL DE ESTA CABECERA MUNICIPAL"]
[1205,"30 DE ENERO DE 2019","DISTRIBUIDORA NACIONAL DE MOTOCICLETAS S.A. DE C.V.",{"v":65720,"d":"$65,720.00"},"MOTOCICLETA NUEVA MOD. SUPER HEAVY CAB. MOTOR 248CC 14 HP 4 TIEMPOS OHV. 1 CILINDRO ENFRIADO POR AGUA , TRANSMISION DE 5 VELOCIDADES CONSTANTES. No. DE MOTOR 167MMK5B02941, MOD. 2019"]
[1206,"30 DE ENERO DE 2019","JORGE ANDRES MANCILLA CASTILLO",{"v":1037.62,"d":"$1,037.62"},"TONER HEWLETT PACKARD G HP-17A PARA IMPRESORA DE OFICINA SAMAPA"]
[1207,"31 DE ENERO DE 2019","JOSE LUIS ZARATE NAVARRO",{"v":21344,"d":"$21,344.00"},"REPARACION A PIPA ASIGNADA A SAMAPA "]
[1208,"31 DE ENERO DE 2019","RIVERA TORRES JESSICA MONTSERRAT","CANCELADO"]
[1209,"31 DE ENERO DE 2019","RIVERA TORRES JESSICA MONTSERRAT",{"v":58198.36,"d":"$58,198.36"},"DESAZOLVE DE POZO MUFA Y EQUIPO DE BOMBEO"]
[1210,"05 DE FEBRERO DE 2019","ABRAHAM ALEJANDRO VAZQUEZ RUBIO",{"v":9645.4,"d":"$9,645.40"},"REPARACAION A VEHICULO FORD RANGER, ASIGNADA A SAMAPA"]
[1211,"05 DE FEBRERO DE 2019","LIBRADO HERRERA VALLEJO",{"v":650,"d":"$650.00"},"LIMPIEZA DE RADIADOR DE FORD RANGER BLANCA, ASIGNADA A SAMAPA"]
[1212,"05 DE FEBRERO DE 2019","EMILIO GONZALEZ DELGADILLO",{"v":23882.61,"d":"$23,882.61"},"GASTOS A COMPROBAR (EQUIPO DE PROTECCION PERSONAL, PARA CUADRILLAS SAMAPA)"]
[1213,"05 DE FEBRERO DE 2019","EMILIO GONZALEZ DELGADILLO",{"v":5500.02,"d":"$5,500.02"},"GASTOS A COMPROBAR (LLANTAS R15 C PARA VEHICULO ASIGNADO A SAMAPA)"]
[1214,"05 DE FEBRERO DE 2019","EMILIO GONZALEZ DELGADILLO",{"v":1973.01,"d":"$1,973.01"},"GASTOS A COMPROBAR (LLANTAS R17 PARA VEHICULO ASIGNADO A SAMAPA)"]
[1215,"05 DE FEBRERO DE 2019","RODRIGO MARTINEZ VILLANUEVA ",{"v":5000,"d":"$5,000.00"},"FINIQUITO A PERSONA QUE SE  ENCONTRABA EN AREA TECNICA COMO FONTANERO"]
[1216,"05 DE FEBRERO DE 2019","JOSE DE JESUS BAEZA CHAVEZ","CANCELADO","REPARACION DE MARCHA A PIPA ASIGNADA A SAMAPA"]
[1217,"05 DE FEBRERO DE 2019","RITA ZUÑIGA LOPEZ",{"v":2000,"d":"$2,000.00"},"PRESTAMO PERSONAL A EMPLEADO SAMAPA"]
[1218,"05 DE FEBRERO DE 2019","MIGUEL ANGEL ZARAGOZA ZARAGOZA",{"v":2000,"d":"$2,000.00"},"PRESTAMO PERSONAL A EMPLEADO SAMAPA"]
[1219,"05 DE FEBRERO DE 2019","RAUL PEREZ LAZCANO",{"v":3000,"d":"$3,000.00"},"PRESTAMO PERSONAL A EMPLEADO SAMAPA"]
[1220,"06 DE FEBRERO DE 2019","ISIDRO NERI MORALES","CANCELADO","2 VIAJES DE ARENA PARA MANTENIMIENTO "]
[1221,"06 DE FEBRERO DE 2019","ISIDRO NERI MORALES",{"v":2930,"d":"$2,930.00"},"2 VIAJES DE ARENA PARA MANTENIMIENTO "]
[1222,"06 DE FEBRERO DE 2019","EMILIO GONZALEZ DELGADILLO",{"v":50000,"d":"$50,000.00"},"GASTOS A COMPROBAR ( ANTICIPO DE LA SUSTITUCION DE POZO DE LA LOCALIDAD DE AGUILILLAS)"]
[1223,"07 DE FEBRERO DE 2019","EMILIO GONZALEZ DELGADILLO",{"v":16385,"d":"$16,385.00"},"GASTOS A COMPROBAR ( 50 BARILLAS DE ACERO FLEXIBLE PARA DESTAPAR DRENAJE )"]
[1224,"07 DE FEBRERO DE 2019","JOSE DE JESUS  BAEZA CHAVEZ",{"v":1900,"d":"$1,900.00"},"REPARACION DE MARCHA DE PIPA ASIGNADA A SAMAPA"]
[1225,"07 DE FEBRERO DE 2019","JOSE AGUSTIN JIMENEZ GUERRERO ",{"v":20000,"d":"$20,000.00"},"3 MESES DE SUPERVISION  DE LA PLANTA DE TRATAMIENTO DEL FRACCIONAMIENTO SABINOS I"]
[1226,"15 DE FEBRERO DE 2019","GONZALO BEJARANO LECHUGA",{"v":4564.6,"d":"$4,564.60"},"IMPRESIÓN DE 2 MIL VALES DE GASOLINA, 20 PZS. DE RECORTES DE VINIL,1 LONA DE 300 X 290, PARA SAMAPA."]
[1227,"15 DE FEBRERO DE 2019","ALBERTO HERNANDEZ VELAZQUEZ",{"v":10000,"d":"$10,000.00"},"3 ARCHIVEROS METALICOS  DE 4 CAJONES, 2 ARCHIVEROS METALICOS DE 3 CAJONES, PARA OFICINAS SAMAPA"]
[1228,"15 DE FEBRERO DE 2019","JORGE ANDRES MANCILLA CASTILLO","CANCELADO","2 TONER HEWLETT PACKARD G HP-17A PARA IMPRESORAS DE OFICINA SAMAPA"]
[1229,"15 DE FEBRERO DE 2019","FELICIANO GARCIA PEREZ",{"v":20400,"d":"$20,400.00"},"FACTURA REFERIDA EN ADEFAS 2018,  CON FOLIO # 1455 ( REPARACION COMPLETA DE MOTOBOMBA SIEMENS DE 15 HP, PARA POZO LOMAS DE LA CAPILLA."]
[1230,"15 DE FEBRERO DE 2019","EMILIO GONZALEZ DELGADILLO",{"v":20789.6,"d":"$20,789.60"},"COMPLEMENTO DE  DE NOMINA CORRESPONDIENTE A PRIMERA QUINCENA DE FEBRERO 2019 ( PERSONAL QUE NO CUENTA CON TARJETA DE COBRO)"]
[1231,"15 DE FEBRERO DE 2019","FRANCISCO JAVIER HERRERA ENCISO",{"v":4093.64,"d":"$4,093.64"},"ACEITES Y REFACCIONES PARA LOS DIFERENTES VEHICULOS ASIGNADOS A SAMAPA"]
[1232,"18 DE FEBRERO DE 2019","MORA NERI RUBEN","CANCELADO","FINIQUITO A PERSONA QUE SE ENCONTRABA COMO OPERADOR DE FUENTES DE ABASTECIMINETO, EN AREA TECNICA"]
[1233,"18 DE FEBRERO DE 2019","MORA NERI RUBEN ",{"v":3501.4,"d":"$3,501.40"},"FINIQUITO A PERSONA QUE SE ENCONTRABA COMO OPERADOR DE FUENTE DE ABASTECIMIENTO, EN AREA TECNICA"]
[1234,"18 DE FEBRERO DE 2019","ALBERTO HERNANDEZ VELAZQUEZ",{"v":19488,"d":"$19,488.00"},"4 PUERTAS METALICAS DE 1 MTS. X 2 MTS. PARA CUARTOS DE CLORACION DE LOMAS DE LA CAPILLA"]
[1235,"19 DE FEBRERO DE 2019","JORGE ANDRES MANCILLA CASTILLO",{"v":1843.24,"d":"$1,843.24"},"2 TONER HEWLETT PACKARD G HP-17 A PARA IMPRESORAS DE OFICINAS SAMAPA"]
[1236,"20 DE FEBRERO DE 2019","RAMON COVARRUBIAS MARTINEZ",{"v":4463.68,"d":"$4,463.68"},"SERVICIO DE AFINACION COMPLETA PARA VEHICULO NISSAN NP 300 ASIGNADO A SAMAPA"]
[1237,"20 DE FEBRERO DE 2019","ALBERTO HERNANDEZ VELAZQUEZ",{"v":11832,"d":"$11,832.00"},"2 LLANTAS R225 PARA PIPA ASIGNADA A SAMAPA"]
[1238,"20 DE FEBRERO DE 2019","CESAR EUGENIO BLANCARTE MENDEZ",{"v":2100,"d":"$2,100.00"},"2 VIAJES DE TEZONTLE PARA RELLENAR EL POZO DE LA VENTONITA EN LA LOCALIDAD DE LA CAPILLA"]
[1239,"20 DE FEBRERO DE 2019","JESUS ALEJANDRO FLORES BERNARDO",{"v":3419.96,"d":"$3,419.96"},"( GASTOS A COMPROBAR) MONTAJE DE LLANTAS Y BALANCEO A VEHICULO RANGER BLANCA ASIGNADA A SAMAPA"]
[1240,"20 DE FEBRERO DE 2019","JESUS ALEJANDRO FLORES BERNARDO",{"v":1650,"d":"$1,650.00"},"( GASTOS A COMPROBAR) PAGO DE PLACAS PARA MOTO ASIGNADA A SAMAPA"]
[1241,"20 DE FEBRERO DE 2019","EMILIO GONZALEZ DELGADILLO",{"v":1973.01,"d":"$1,973.01"},"( GASTOS A COMPROBAR) LLANTA PARA FORD PICK UP ASIGNADA A SAMAPA  DE LA LOCALIDAD DE ATEQUIZA"]
[1242,"20 DE FEBRERO DE 2019","EMILIO GONZALEZ DELGADILLO",{"v":2400.02,"d":"$2,400.02"},"( GASTOS A COMPROBAR) 2 LLANTAS PARA VEHICULO  MAZDA ASIGNADA A SAMAPA  DE LA LOCALIDAD DE LA CAPILLA"]
[1243,"20 DE FEBRERO DE 2019","EMILIO GONZALEZ DELGADILLO",{"v":7500,"d":"$7,500.00"},"(GASTOS A COMPROBAR) PAGO DE ALBAÑILES QUE ELABORAN CUARTOS DE CLORACION EN LOMAS DE LA CAPILLA CORRESPONDIENTE A PRIMER SEMANA DEL 28/01/2019 AL 02/02/2019"]
[1244,"20 DE FEBRERO DE 2019","EMILIO GONZALEZ DELGADILLO",{"v":7500,"d":"$7,500.00"},"(GASTOS A COMPROBAR) PAGO DE ALBAÑILES QUE ELABORAN CUARTOS DE CLORACION EN LOMAS DE LA CAPILLA CORRESPONDIENTE ASEGUNDA SEMANA DEL 04/02/2019 AL 09/02/2019"]
[1245,"20 DE FEBRERO DE 2019","EMILIO GONZALEZ DELGADILLO",{"v":7500,"d":"$7,500.00"},"(GASTOS A COMPROBAR) PAGO DE ALBAÑILES QUE ELABORAN CUARTOS DE CLORACION EN LOMAS DE LA CAPILLA CORRESPONDIENTE A TERCERA SEMANA, DEL 11/02/2019 AL 16/02/2019"]
[1246,"21 DE FEBRERO DE 2019","ALBERTO HERNANDEZ VELAZQUEZ",{"v":15660,"d":"$15,660.00"},"GRAVA SELECCIONADA DE RIO DE 1/4\" DE DIAMETRO, PARA POZO DE LA LOCALIDAD DE AGUILILLAS, INCLUYE FLETE DESDE LA CIUDAD DE TAMAZULA A ESTA CABECERA MUNICIPAL."]
[1247,"21 DE FEBRERO DE 2019","JESUS ALEJANDRO FLORES BERNARDO",{"v":2917.3,"d":"$2,917.30"},"GASTOS A COMPROBAR ( PAPELERIA Y ACCESORIOS PARA LAS DIFERENTES OFICINAS SAMAPA)"]
[1248,"22 DE FEBRERO DE 2019","CFE SUMINISTRADOR DE SERVICIOS BASICOS ",{"v":1495421,"d":"$1,495,421.00"},"PAGO DE ENERGIA ELECTRICA CORRESPONDIENTE AL MES DE ENERO 2019"]
[1249,"22 DE FEBRERO DE 2019","EMILIO GONZALEZ DELGADILLO",{"v":1199.04,"d":"$1,199.04"},"GASTOS A COMPROBAR ( PAGO DE INTERNET Y TELEFONIA, SAMAPA)"]
[1250,"22 DE FEBRERO DE 2019","SERGIO HERRERA ENCISO",{"v":21271.87,"d":"$21,271.87"},"MATERIAL SOLICITADO PARA ALMACEN Y LAS DIFERENTES CUADRILLAS SAMAPA"]
[1251,"22 DE FEBRERO DE 2019","JESUS ALEJANDRO FLORES BERNARDO",{"v":696.24,"d":"$696.24"},"GASTOS A COMPROBAR ( PAPELERIA Y PRODUCTOS DE LIMPIEZA PARA OFICINAS SAMAPA)"]
[1252,"22 DE FEBRERO DE 2019","ALBERTO HERNANDEZ VELAZQUEZ",{"v":2726,"d":"$2,726.00"},"AJUSTE DE CLUCHT Y CAMBIO DE CELENOIDE A PIPA, CAMBIO DE MANGUERA DE DIESSEL Y AJUSTE DE CLUCHT A VACTOR, ASIGNADOS A SAMAPA"]
[1253,"27 DE FEBRERO DE 2019","EMILIO GONZALEZ DELGADILLO",{"v":18934.8,"d":"$18,934.80"},"COMPLEMENTO DE NOMINA CORRESPONDIENTE A SEGUNDA QUINCENA DE FEBRERO 2019 ( PERSONAL QUE NO CUENTA CON TARJETA DE COBRO)"]
[1254,"27 DE FEBRERO DE 2019","JOSE LUIS ENCISO CASTAÑEDA",{"v":7127,"d":"$7,127.00"},"FINIQUITO A PERSONA QUE SE ENCONTRABA EN AREA TECNICA COMO FONTANERO"]
[1255,"27 DE FEBRERO DE 2019","CARLOS ALBERTO ARELLANO DELGADO",{"v":7134,"d":"$7,134.00"},"FINIQUITO A PERSONA QUE SE ENCONTRABA EN AREA TECNICA COMO OPERADOR DE PLANTA DE TRATAMIENTO"]
[1256,"28 DE FEBRERO DE 2019","JORGE ANDRES MANCILLA CASTILLO",{"v":3481.16,"d":"$3,481.16"},"1 UNIDAD DE IMGEN SAMSUNG G M4072U, 4 BOTELLA DE TINTA EPSON, PARA IMPRESORAS SAMAPA"]
[1257,"28 DE FEBRERO DE 2019","RIVERA TORRES JESSICA MONTSERRAT",{"v":9164,"d":"$9,164.00"},"TRASLADO DE PERSONAL CON HERRAMIENTA NECESARIA PARA REALIZAR ESTUDIO EN POZO DE LA LOCALIDAD DE CASAS BALI."]
[1258,"28 DE FEBRERO DE 2019","RIVERA TORRES JESSICA MONTSERRAT",{"v":17278.2,"d":"$17,278.20"},"TRASLADO DE PERSONAL CON HERRAMIENTA NECESARIA PARA REALIZAR EL TRABAJO ELECTRICO DEB AUTO TRANSFORMADOR PARA SUMINISTRO DE ENERGIA DE DOSIFICADOR DE CLORO, EN POZO DE SABINOS III"]
[1259,"28 DE FEBRERO DE 2019","RIVERA TORRES JESSICA MONTSERRAT",{"v":82157.7,"d":"$82,157.70"},"EXTRACCION DE EQUIPO DE BOMBEO DAÑADO POR ARENA Y ASI MISMO LA COMPRA DE UNA BOMBA TIPO ROBUSTA CON BUJES EN ESPIRAL Y LA CONEXIÓN DE MUFA ELECTRICA EN POZO 2 DE LA CAPILLA."]
[1260,"28 DE FEBRERO DE 2019","RIVERA TORRES JESSICA MONTSERRAT",{"v":7192,"d":"$7,192.00"},"TRASLADO DE GRUA Y PERSONAL CON LA HERRAMIENTA NECESARIA PARA REALIZAR TRABAJO DE DESINSTALACION DE COLUMNA DE 3\", CAMBIAR TUBERIA DAÑADA POR TUBOS EN BUENAS CONDICIONES E INSTALACION EQUIPO DE BOMBEO EN POZO 3 DE ATEQUIZA."]
[1261,"28 DE FEBRERO DE 2019","RIVERA TORRES JESSICA MONTSERRAT",{"v":4002,"d":"$4,002.00"},"TRASLADO DE PERSONAL PARA REALIZAR TRABAJO ELECTRICO, INSTALACION DE BASE SOKRT DE 200 AMP. 4 PUNTAS CON TERMINALES, PARA POZO 2, LA TINAJA EN ATEQUIZA"]
[1262,"28 DE FEBRERO DE 2019","RIVERA TORRES JESSICA MONTSERRAT",{"v":141535.08,"d":"$141,535.08"},"EXTRACCION DE EQUIPO DE BOMBEO, Y LA COMPRA DEB BOMBA MARCA ALTAMIRA DE 60 HP CONSTRUIDA  EN HIERRO DUCTIL CON IMPULSOR DE HACERO Y SERVICIO DE GRUA, EN POZO 1 DE IXTLAHUACAN  DE LOS MEMBRILLOS"]
[1263,"28 DE FEBRERO DE 2019","EMILIO GONZALEZ DELGADILLO",{"v":7044,"d":"$7,044.00"},"GASTOS A COMPROBAR ( MATERIAL SOLICITADO PARA CUARTO DE CLORACION DEL FRACCIONAMIENTO PUERTA DEL SOL)"]
[1264,"01 DE MARZO DE 2019","EMILIO GONZALEZ DELGADILLO",{"v":156650.48,"d":"$156,650.48"},"GASTOS A COMPROBAR ( ANTICIPO PARA LA PERFORACION DE POZO DE LA LOCALIDAD DE LAS AGUILILLAS)"]
[1265,"01 DE MARZO DE 2019","EMILIO GONZALEZ DELGADILLO",{"v":300000,"d":"$300,000.00"},"GASTOS A COMPROBAR ( ANTICIPO PARA LA SUSTITUCION DE  400 METROS DE RED DE AGUA EN CALLE VISTA TRANQUILA, EN FRACC. BUENAVISTA  )"]
[1266,"01 DE MARZO DE 2019","EMILIO GONZALEZ DELGADILLO",{"v":300000,"d":"$300,000.00"},"GASTOS A COMPROBAR ( ANTICIPO PARA LA SUSTITUCION DE  400 METROS DE RED DE AGUA EN CALLE CHULA VISTA, EN FRACC. BUENAVISTA  )"]
[1267,"01 DE MARZO DE 2019","MARCO ANTONIO RAMIREZ BRAVO",{"v":6960,"d":"$6,960.00"},"RENTA DE RETROEXCAVADORA PARA LIMPIEZA DE POZO EN LA LOCALIDAD DE LA CAPILLA"]
[1268,"01 DE MARZO DE 2019","MARCO ANTONIO RAMIREZ BRAVO",{"v":5452,"d":"$5,452.00"},"PODA DE PASTO Y REFORESTACION DEL MISMO EN FRACCIONAMINETO OLIVOS I"]
[1269,"01 DE MARZO DE 2019","EMILIO GONZALEZ DELGADILLO",{"v":3883.68,"d":"$3,883.68"},"CARPETAS PARA RESGUARDAR DOCUMENTOS DE ARCHIVO SAMAPA"]
[1270,"01 DE MARZO DE 2019","FRANCISCO JAVIER HERRERA ENCISO ",{"v":5687.48,"d":"$5,687.48"},"ACEITES Y ACCESORIOS PARA LOS DIFERENTES VEHICULOS ASIGNADOS A SAMAPA"]
[1271,"01 DE MARZO DE 2019","FELICIANO GARCIA PEREZ",{"v":14800,"d":"$14,800.00"},"FACTURA # 1458 ,REFERIDA EN ADEFAS 2018, REPARACION DE BOMBA DE 30 HP BOBINADO EN GENERAL HORNEADO, Y CAMBIO DE BALEROS PARA EL FRACCIONAMIENTO OLIVOS 2"]
[1272,"01 DE MARZO DE 2019","ALBERTO HERNANDEZ VELAZQUEZ",{"v":4905.64,"d":"$4,905.64"},"CAMBIO DE ACEITE Y BALATAS A VEHICULO FORD BLANCA, ASIGNADA A SAMAPA"]
[1273,"04 DE MARZO DE 2019","EMILIO GONZALEZ DELGADILLO",{"v":440800,"d":"$440,800.00"},"RENOVACION DE LINEA DE AGUA EN CALLE 16 DE SEPTIEMBRE Y MANUEL CAPETILLO EN LA LOCALIDAD DE BUENAVISTA"]
[1274,"05 DE MARZO DE 2019","EMILIO GONZALEZ DELGADILLO",{"v":29000,"d":"$29,000.00"},"GASTOS A COMPROBAR ( 1 COMPACTADORA BAILARINA 4 HP GASOLIN MOTOR ROBIN PARA CUADRILLAS SAMAPA)"]
[1275,"06 DE MARZO DE 2019","EMILIO GONZALEZ DELGADILLO",{"v":134112.58,"d":"$134,112.58"},"(GASTOS A COMPROBAR) COMPLEMENTO DE OBRA DE 400 MTS DE RED DE AGUA EN CALLE VISTA HERMOSA EN FRACC. BUENAVISTA"]
[1276,"07 DE MARZO DE 2019","RAMON HERRERA REYES",{"v":5000,"d":"$5,000.00"},"PRESTAMO PERSONAL A EMPLEADO SAMAPA"]
[1277,"08 DE MARZO DE 2019","JOSE ANTONIO CONTRERAS LOPEZ ",{"v":800,"d":"$800.00"},"ELABORACION DE LLAVES PARA MOVER VALVULAS DE LAS DIFERENTES FUENTES DE ABASTECIMIENTO"]
[1278,"08 DE MARZO DE 2019","EMILIO GONZALEZ DELGADILLO",{"v":23650,"d":"$23,650.00"},"GASTOS A COMPROBAR ( LLANTAS PARA PIPA Y CAMION TIPO VACTOR, ASIGNADOS A SAMAPA)"]
[1279,"08 DE MARZO DE 2019","SERGIO HERRERA ENCISO",{"v":36000.68,"d":"$36,000.68"},"MATERIAL SOLICITADO PARA ALMACEN Y LAS DIFERENTES CUADRILLAS SAMAPA"]
[1280,"13 DE MARZO DE 2019","EMILIO GONZALEZ DELGADILLO",{"v":321304.07,"d":"$321,304.07"},"GASTOS A COMPROBAR ( ANTICIPO DE PERFORACION DE POZO NUEVO EN LA LOCALIDAD DE LAS AGUILILLAS)"]
[1281,"13 DE MARZO DE 2019","SERGIO HERRERA ENCISO",{"v":4872,"d":"$4,872.00"},"TALADRO INALAMBRICO PARA CUADRILLAS DE TRABAJO SAMAPA"]
[1282,"14 DE MARZO DE 2019","EMILIO GONZALEZ DELGADILLO",{"v":15060.8,"d":"$15,060.80"},"COMPLEMENTO DE NOMINA CORREPONDIENTE A PRIMER QUINCENA DE MARZO 2019 ( PERSONAL QUE NO CUENTA CON TARJETA DE COBRO)"]
[1283,"14 DE MARZO DE 2019","JOSE CARLOS ALVAREZ NAJAR",{"v":7166.4,"d":"$7,166.40"},"FINIQUITO A PERSONA QUE SE ENCONTRABA EN AREA TECNICA COMO OPERADOR DE PLANTA DE TRATAMIENTO"]
[1284,"14 DE MARZO DE 2019","MIGUEL GUTIERREZ LOZANO",{"v":1630,"d":"$1,630.00"},"PAGO DE RENTA Y CONSUMO DE ENERGIA ELECTRICA CORRESPONDIENTE AL MES DE MARZO 2019, DE LOCAL QUE OCUPA LA OFICINA SAMAPA EN LA LOCALIDAD DE LA CAPILLA"]
[1285,"14 DE MARZO DE 2019","MIGUEL GUTIERREZ LOZANO",{"v":1500,"d":"$1,500.00"},"PAGO DE RENTA CORRESPONDIENTE AL MES DE FEBRERO 2019, DE LOCAL QUE OCUPA LA OFICINA SAMAPA EN LA LOCALIDAD DE LA CAPILLA"]
[1286,"14 DE MARZO DE 2019","CESAR EUGENIO BLANCARTE MENDEZ",{"v":2000,"d":"$2,000.00"},"1 VIAJE DE JAL, PARA REPARACIONES DE FUGAS EN LAS DIFERENTES LOCALIDADES DE ESTE MUNICIPIO"]
[1287,"14 DE MARZO DE 2019","EMILIO GONZALEZ DELGADILLO",{"v":7500,"d":"$7,500.00"},"GASTOS A COMPROBAR ( PAGO DE ALBAÑILES QUE ELEABORAN CUARTOS DE CLORACION EN POZO DE LA LOCALIDAD DE LOMAS DE LA CAPILLA QUE CORRESPONDE DE 18/02/2019 AL 23/02/2019"]
[1288,"14 DE MARZO DE 2019","EMILIO GONZALEZ DELGADILLO",{"v":7500,"d":"$7,500.00"},"GASTOS A COMPROBAR ( PAGO DE ALBAÑILES QUE ELEABORAN CUARTOS DE CLORACION EN POZO DE FRACCIONAMIENTO PUERTA DEL SOL DEL 25/02/2019 AL 02/03/2019"]
[1289,"14 DE MARZO DE 2019","EMILIO GONZALEZ DELGADILLO",{"v":7500,"d":"$7,500.00"},"GASTOS A COMPROBAR ( PAGO DE ALBAÑILES QUE ELEABORAN CUARTOS DE CLORACION EN POZO DE FRACCIONAMIENTO PUERTA DEL SOL DEL 04/03/2019 AL 09/03/2019"]
[1290,"14 DE MARZO DE 2019","JORGE ANDRES MANCILLA CASTILLO",{"v":1778.21,"d":"$1,778.21"},"4 TARJETA DE RED INALAMBRICA USB Y 1 TONER HEWLETT PACKARDB G        HP-17 A,  PARA EQUIPOS DE COMPUTO DE OFICINA SAMAPA"]
[1291,"15 DE MARZO DE 2019","FRANCISCO CORTES SANDOVAL",{"v":13340,"d":"$13,340.00"},"REPARACION DE BOMBA DE REBOMBEO DE POZO DE SABINOS 1"]
[1292,"15 DE MARZO DE 2019","EMILIO GONZALEZ DELGADILLO",{"v":2746,"d":"$2,746.00"},"GASTOS A COMPROBAR ( MATERIAL SOLICITADO PARA LAS CUADRILLAS SAMAPA)"]
[1293,"15 DE MARZO DE 2019","JESUS ALEJANDRO FLORES BERNARDO",{"v":3554.99,"d":"$3,554.99"},"GASTOS A COMPROBAR ( EQUIPO PARA MONITOREO DE OFICINA SAMAPA)"]
[1294,"15 DE MARZO DE 2019","TUBERIAS Y CONEXIONES DEL LAGO SA DE CV",{"v":13819.78,"d":"$13,819.78"},"MATERIAL SOLICITADO PARA ALMACEN Y REPARACIONES DE FUGAS EN LAS DIFERENTES LOCALIDADES DEL MUNICIPIO"]
[1295,"15 DE MARZO DE 2019","IRENE CERVANTES MANDUJANO","CANCELADO","3,750 KGM DE HIPOCLORITO DE SODIO AL 13 %  Y 5,000 PASTILLAS DE CLORO, PARA LAS DIFERENTES FUENTES DE ABASTECIMIENTO DE AGUA POTABLE DE ESTA CABECERA MUNICIPAL"]
[1296,"15 DE MARZO DE 2019","JESUS ALEJANDRO FLORES BERNARDO",{"v":765.6,"d":"$765.60"},"GASTOS A COMPROBAR ( IMPRESIÓN DE 12 PLANOS PARA OFICINA SAMAPA)"]
[1297,"15 DE MARZO DE 2019","SERGIO HERRERA ENCISO",{"v":6634.99,"d":"$6,634.99"},"MATERIAL SOLICITADO PARA REPARACIONES DE FUGAS EN LAS DIFERENTES LOCALIDADES DEL MUNICIPIO"]
[1298,"22 DE MARZO DE 2019","JOSE ROBERTO NAVARRO LAZCANO",{"v":8300,"d":"$8,300.00"},"FINIQUITO A PERSONA QUE SE ENCONTRABA EN AREA TECNICA COMO JEFE DE CUADRILLA"]
[1299,"20 DE MARZO DE 2019","JORGE ANDRES MANCILLA CASTILLO",{"v":12890.94,"d":"$12,890.94"},"SCANNER CANON DR-C240 600 PPP, PARA OFICINA SAMAPA"]
[1300,"21 DE MARZO DE 2019","JESUS ALEJANDRO FLORES BERNARDO",{"v":2736.3,"d":"$2,736.30"},"GASTOS A COMPROBAR ( PAPELERIA PARA OFICINA SAMAPA)"]
[1301,"22 DE MARZO DE 2019","ROGELIO NAVARRO LAZCANO",{"v":5500,"d":"$5,500.00"},"FINIQUITO A PERSONA QUE SE ENCONTRABA EN AREA TECNICA COMO FONTANERO"]
[1302,"22 DE MARZO DE 2019","EMILIO GONZALEZ DELGADILLO",{"v":1199.04,"d":"$1,199.04"},"GASTOS A COMPROBAR ( PAGO DE INTERNET Y TELEFONIA POR CABLE)"]
[1303,"22 DE MARZO DE 2019","TUBERIAS Y CONEXIONES DEL LAGO SA DE CV",{"v":29733.34,"d":"$29,733.34"},"MATERIAL SOLICITADO PARA ALMACEN Y LAS DIFEENTES CUADRILLAS SAMAPA"]
[1304,"25 DE MARZO DE 2019","JORGE ANDRES MANCILLA CASTILLO",{"v":3598.32,"d":"$3,598.32"},"2 SILLAS PARA OFICINA Y 4 BOTELLAS DE TINTA PARA IMPRESORAS SAMAPA"]
[1305,"25 DE MARZO DE 2019","GONZALO BEJARANO LECHUGA",{"v":22332.95,"d":"$22,332.95"},"10 MIL HOJAS MEMBRETADAS TAMAÑO CARTA, 7 MIL HOJAS MEMBRETADAS TAMAÑO OFICIO, SELLO 116 X 70 MM Y SELLO 22 X 58 MM, PARA OFICINA SAMAPA"]
[1306,"25 DE MARZO DE 2019","JOSE ANGEL SOTO CASAS",{"v":2000,"d":"$2,000.00"},"PRESTAMO PERSONAL A EMPLEADO SAMAPA"]
[1307,"25 DE MARZO DE 2019","FELIPE HERRERA ENCISO",{"v":29530.12,"d":"$29,530.12"},"MATERIAL SOLICITADO PARA ALMACEN Y REPARACIONES DE FUGAS DE LAS DIFERENTES LOCALIDADES DE ESTA CABECERA MUNICIPAL"]
[1308,"26 DE MARZO DE 2019","FRANCISCO CORTES SANDOVAL",{"v":106058.24,"d":"$106,058.24"},"COMPLEMENTO DE PAGO TOTAL POR SUSTITUCION DE 400 MTS DE RED DE AGUA POTABLE EN CALLE CHULA VISTA EN FRACC. BUENAVISTA"]
[1309,"27 DE MARZO DE 2019","EMILIO GONZALEZ DELGADILLO",{"v":160301,"d":"$160,301.00"},"PAGO DE NOMINA CORRESPONDIENTE A SEGUNDA QUINCENA DE MARZO 2019"]
[1310,"28 DE MARZO DE 2019","EMILIO GONZALEZ DELGADILLO",{"v":4232.62,"d":"$4,232.62"},"GASTOS A COPROBAR (15 CAMISAS DE GABARDINA PARA SECRETARIAS SAMAPA)"]
[1311,"28 DE MARZO DE 2019","EMILIO GONZALEZ DELGADILLO",{"v":2900,"d":"$2,900.00"},"GASTOS A COMPROBAR (EMPASTADO DE CLUTCH DE CAMION TIPO VACTOR)"]
[1312,"28 DE MARZO DE 2019","FELIPE HERRERA ENCISO",{"v":6634.04,"d":"$6,634.04"},"MATERIAL SOLICITADO PARA REPARACION DE FUGAS EN LAS DIFERENTES LOCALIDADES DEL MUNICIPIO"]
[1313,"28 DE MARZO DE 2019","LAMAS INFANTE GUILLERMO",{"v":6496,"d":"$6,496.00"},"REPARACION  DE BOMBA DE LODOS DE LA PTAR DE FRACC. SABINOS1"]
[1314,"28 DE MARZO DE 2019","MARIA TERESA RAMIREZ ROSAS",{"v":879.98,"d":"$879.98"},"PINTURA, BROCHAS Y CEPILLOS PARA PINTAR POZO NUEVO DE AGUILILLAS"]
[1315,"28 DE MARZO DE 2019","JOSE ANTONIO CONTRERAS LOPEZ",{"v":1600,"d":"$1,600.00"},"FABRICACION DE BANCO PARA TORNILLOS, UTILIZADO PARA TRABAJOS DE CUADRILLAS SAMAPA"]
[1316,"28 DE MARZO DE 2019","VICTOR ADRIAN MARTINEZ MARTINEZ",{"v":9280,"d":"$9,280.00"},"DESMONTAR Y MONTAR SEGUNDO MOTOR PARA INSTALAR CLUTCH, ENDERESAR BARRAS DE DIRECCION Y ALINEACION A CAMION TIPO VACTOR"]
[1317,"28 DE MARZO DE 2019","FRANCISCO CORTES SANDOVAL",{"v":111267.53,"d":"$111,267.53"},"COMPLEMENTO DEL PAGO TOTAL DE RENOVACION DE 400 MTS DE RED DE AGUA POTABLE EN 4\", EN CALLE VISTA TRANQUILA DEL FRACC. BUENAVISTA"]
[1318,"28 DE MARZO DE 2019","FRANCISCO CORTES SANDOVAL",{"v":19968.87,"d":"$19,968.87"},"COMPLEMENTO DEL PAGO TOTAL DE RENOVACION DE 400 MTS DE RED DE AGUA POTABLE EN 4\", CON 17 TOMAS DOMICILIARIAS DE 1/2\" EN CALLE VISTA HERMOSA DEL FRACC. BUENAVISTA"]
[1319,"28 DE MARZO DE 2019","FRANCISCO CORTES SANDOVAL",{"v":269585.45,"d":"$269,585.45"},"COMPLEMENTO DEL PAGO TOTAL DE PERFORACION DE POZO NUEVO DE LA LOCALIDAD DE AGUILILLAS"]
[1320,"29 DE MARZO DE 2019","PEDRO BLAS SANCHEZ",{"v":1400,"d":"$1,400.00"},"SOLDADURA EN TREN DE DESCARGA DE POZO NUEVO DE AGUILILLAS"]
[1321,"29 DE MARZO DE 2019","FRANCISCO JAVIER HERRERA ENCISO",{"v":12807.56,"d":"$12,807.56"},"ACCESORIOS Y ACEITES PARA LOS DIFERENTES VEHICULOS ASIGNADOS A SAMAPA"]
[1322,"29 DE MARZO DE 2019","ALBERTO HERNANDEZ VELAZQUEZ",{"v":5312.8,"d":"$5,312.80"},"SERVICIOS COMPLETOS A PIPAS SAMAPA Y BALERO PILOTO PARA CAMION TIPO VACTOR"]
[1323,"29 DE MARZO DE 2019","RIVERA TORRES JESSICA MONTSERRAT",{"v":76275.72,"d":"$76,275.72"},"EQUIPO DE BOMBEO  COLUMNA DE 4\" SUMINISTRO E INSTALACION DE TREN DE DESCARGA EN 4\", TRANSFORMADOR  DE 30 KVA POR 45  KVA, ARRANCADOR DE 30 HP, MANO DE OBRA PARA LA INSTALACION DE TODO EL EQUIPO  EN POZO NUEVO AGUILILLAS"]
[1324,"29 DE MARZO DE 2019","RIVERA TORRES JESSICA MONTSERRAT",{"v":65454.86,"d":"$65,454.86"},"DESINSTALAR EQUIPO DE BOMBA DE 50 HP EN 440 V. EQUIPO DE BOMBEO DE 30 HP, BOMBA Y MOTOR CON COLUMNA  DE 4\" CONEXIÓN DE MUFA ELECTRICA, MANO DE OBRA, EN POZO DE FRACC. RESIDENCIAL LA CAPILLA"]
[1325,"05 DE ABRIL DE 2019","FELIPE HERRERA ENCISO",{"v":13732.08,"d":"$13,732.08"},"MATERIAL SOLICITADO PARA ALMACEN Y LAS DIFERENTES CUADRILLAS SAMAPA"]
[1326,"05 DE ABRIL DE 2019","CLAUDIA ELIZABETH GARCIA TABARES",{"v":2500,"d":"$2,500.00"},"PRESTAMO PERSONAL A EMPLEADO SAMAPA"]
[1327,"05 DE ABRIL DE 2019","DENYS XITLALI LUNA SIORDIA",{"v":500,"d":"$500.00"},"PRESTAMO PERSONAL A EMPLEADO SAMAPA"]
[1328,"09 DE ABRIL DE 2019","ALEJANDRO MARIA LAZCANO",{"v":3000,"d":"$3,000.00"},"PRESTAMO PERSONAL A EMPLEADO SAMAPA"]
[1329,"09 DE ABRIL DE 2019","RUBEN ROJAS BARAJAS",{"v":3000,"d":"$3,000.00"},"PRESTAMO PERSONAL A EMPLEADO SAMAPA"]
[1330,"09 DE ABRIL DE 2019","EMILIO GONZALEZ DELGADILLO",{"v":735.2,"d":"$735.20"},"GASTOS A COMPROBAR ( PRODUCTOS DE LIMPIEZA Y 18 CD SONY PARA OFICINAS SAMAPA)"]
[1331,"10 DE ABRIL DE 2019","MARCELO MARTINEZ NOLASCO",{"v":25989.48,"d":"$25,989.48"},"MATERIAL SOLICITADO PARA ALMACEN Y LAS DIFERENTES CUADRILLAS SAMAPA ( REPARACION DE FUGAS)"]
[1332,"11 DE ABRIL DE 2019","EMILIO GONZALEZ DELGADILLO",{"v":34823.4,"d":"$34,823.40"},"COMPLEMENTO DE NOMINA CORRESPONDIENTE A PRIMER QUINCENA DE ABRIL DE 2019 (PERSONAL QUE NO CUENTA CON TARJETA DE COBRO)"]
[1333,"11 DE ABRIL DE 2019","JOSE AGUSTIN JIMENEZ GUERRERO",{"v":348000,"d":"$348,000.00"},"REPARACION Y MANTENIMIENTO A PLANTA DE TRATAMIENTO DE AGUAS RESIDUALES DEL FRACCIONAMIENTO HUERTA VIEJA"]
[1334,"12 DE ABRIL DE 2019","JORGE ANDRES MANCILLA CASTILLO",{"v":1593.84,"d":"$1,593.84"},"1 TONER HEWLETT PACKARD G HP-287A"]
[1335,"17 DE ABRIL DE 2019","MARCELO MARTINEZ NOLASCO",{"v":25991.24,"d":"$25,991.24"},"MATERIAL SOLICITADO PARA ALMACEN Y LAS DIFERENTES CUADRILLAS SAMAPA"]
[1336,"17 DE ABRIL DE 2019","ALBERTO HERNANDEZ VELAZQUEZ",{"v":21541.2,"d":"$21,541.20"},"REFACCIONES PARA PIPA ASIGNADA A SAMAPA"]
[1337,"17 DE ABRIL DE 2019","JORGE ANDRES MANCILLA CASTILLO",{"v":1682,"d":"$1,682.00"},"1 TONER SAMSUNG GM4072U EXTRA ALTO RED PARA IMPRESORA DE OFICINA SAMAPA"]
[1338,"17 DE ABRIL DE 2019","ALBERTO HERNANDEZ VELAZQUEZ",{"v":15196,"d":"$15,196.00"},"REPARACION A VEHICULO FORD RANGER ( CLUCH, ROTULAS INFERIORES, TERMINALES DE DIRECCION,BIELETAS, TORNILLOS ESTABILIZADORES, AFINACION, FILTROS, CRUCETA DE FLECHA CARDAN, CREMALLERA Y MANO DE OBRA)"]
[1339,"17 DE ABRIL DE 2019","FELIPE HERRERA ENCISO",{"v":28019.8,"d":"$28,019.80"},"MATERIAL SOLICITADO PARA ALMACEN Y LAS DIFERENTES CUADRILLAS SAMAPA"]
[1340,"17 DE ABRIL DE 2019","GUADALUPE HILARIA FUENTES HERRERA",{"v":4599.99,"d":"$4,599.99"},"1 LLANTA 1120,PARA CAMION TIPO VACTOR, ASIGNADO A SAMAPA"]
[1341,"24 DE ABRIL DE 2019","RAMON COVARRUBIAS MARTINEZ",{"v":11321.6,"d":"$11,321.60"},"CAMBIO DE CLUTCH, SERVICIO DE FRENOS EN LAS 4 RUEDAS, REFACCIONES Y MANO DE OBRA PARA VEHICULO NISSAN NP 300, ASIGNADO A SAMAPA"]
[1342,"24 DE ABRIL DE 2019","MARCELO MARTINEZ NOLASCO",{"v":23908.93,"d":"$23,908.93"},"MATERIAL SOLICITADO PARA ALMACEN Y LAS DIFERENTES CUADRILLAS SAMAPA"]
[1343,"24 DE ABRIL DE 2019","ALBERTO HERNANDEZ VELAZQUEZ",{"v":4872,"d":"$4,872.00"},"REPARACION DE MARCHA E INSTALACION A PIPA FAMSA MERCEDEZ ASIGNADA A SAMAPA"]
[1344,"29 DE ABRIL DE 2019","JORGE ANDRES MANCILLA CASTILLO",{"v":15872.81,"d":"$15,872.81"},"ACCESORIOS Y EQUIPO DE COMPUTO PARA OFICINA SAMAPA"]
[1345,"30 DE ABRIL DE 2019","EMILIO GONZALEZ DELGADILLO",{"v":38106.4,"d":"$38,106.40"},"COMPLEMENTO DE NOMINA CORRESPONDIENTE A SEGUNDA QUINCENA DE ABRIL 2019 (PERSONAL QUE NO CUENTA CON TARJETA DE COBRO)"]
[1346,"30 DE ABRIL DE 2019","RICARDO SOTO CASAS ",{"v":1590,"d":"$1,590.00"},"FINIQUITO A PERSONA QUE SE ENCONTRABA COMO FONTANERO EN AREA TECNICA"]
[1347,"30 DE ABRIL DE 2019","EDGAR IVAN SOTO CASAS ",{"v":1924.4,"d":"$1,924.40"},"FINIQUITO A PERSONA QUE SE ENCONTRABA COMO FONTANERO EN AREA TECNICA"]
[1348,"03 DE MAYO DE 2019","FRANCISCO JAVIER HERRERA ENCISO",{"v":8993.48,"d":"$8,993.48"},"ACEITES Y ACCESORIOS PARA LOS DIFERENTES VEHICULOS ASIGNADOS A SAMAPA"]
[1349,"03 DE MAYO DE 2019","JORGE ANDRES MANCILLA CASTILLO",{"v":5372.92,"d":"$5,372.92"},"3 TONER PARA LAS DIFERENTES IMPRESORAS DE OFICINA SAMAPA , SERVICIO TECNICO E INSTALACION DE EQUIPO DE COMPUTO Y CABLE HDMI "]
[1350,"03 DE MAYO DE 2019","MARCELO MARTINEZ NOLASCO",{"v":9400.63,"d":"$9,400.63"},"MATERIL SOLICITADO PARA ALMACEN Y LAS DIFERENTES CUADRILLAS SAMAPA"]
[1351,"03 DE MAYO DE 2019","RIVERA TORRES JESSICA MONTSERRAT",{"v":224192.62,"d":"$224,192.62"},"TUBERIA PARA POZO PROFUNDO DE DIAMETRO DE 10\" X 1/4, TUBO DE 6\" X 6.20 PARA  COLUMNA DE POZO Y CABLE PLANO SUMERGIBLE PARA POZO # 1 DE CABECERA MUNICIPAL"]
[1352,"03 DE MAYO DE 2019","RIVERA TORRES JESSICA MONTSERRAT",{"v":74110.06,"d":"$74,110.06"},"MOTOR SUMERGIBLE E INSTALACION , MARCA ALTAMIRA DE UNA CAPACIDAD DE 50 HP/460V PARA POZO # 3 DE LAS AGUILILLAS"]
[1353,"03 DE MAYO DE 2019","RIVERA TORRES JESSICA MONTSERRAT",{"v":25346,"d":"$25,346.00"},"INSTALACION DE EQUIPO DE BOMBEO Y MOTOR DE 75 HP, PARA POZO # 1 DE ESTA CABECERA  MUNICIPAL"]
[1355,"03 DE MAYO DE 2019","JOSE CARLOS GUTIERREZ FLORES",{"v":1525.4,"d":"$1,525.40"},"MATERIAL SOLICITADO PARA REPARACION DE FUGAS"]
[1356,"03 DE MAYO DE 2019","EMILIO GONZALEZ DELGADILLO",{"v":910.01,"d":"$910.01"},"GASTOS A COMPROBAR ( LLANTA PARA CAMION TIPO VACTOR)"]
[1357,"03 DE MAYO DE 2019","CESAR EUGENIO BLANCARTE MENDEZ",{"v":3000,"d":"$3,000.00"},"1 VIAJE DE JAL PARA MANTENIMIENTO DE FUGAS EN LAS DIFERE NTES LOCALIDADES DEL MUNICIPIO"]
[1358,"03 DE MAYO DE 2019","FELIPE HERRERA ENCISO",{"v":2514.88,"d":"$2,514.88"},"MATERIAL SOLICITADO PARA ALMACEN  Y LAS DIFERENTES CUADRILLAS SAMAPA"]
[1359,"06 DE MAYO DE 2019","JOSE DANIEL REYNA NUÑEZ",{"v":2000,"d":"$2,000.00"},"PRESTAMO PERSONAL A EMPLEADO SAMAPA DE AREA  TECNICA"]
[1360,"06 DE MAYO DE 2019","EMILIO GONZALEZ DELGADILLO",{"v":2382.03,"d":"$2,382.03"},"GASTOS A COMPROBAR ( PAPELERIA PARA OFICINA SAMAPA)"]
[1361,"08 DE MAYO DE 2019","LAMAS INFANTE GUILLERMO",{"v":14210,"d":"$14,210.00"},"REPARACION EN GENERAL DE BOMBA DE LODOS DE LA PTAR DE SABINOS 1 Y EMBOBINADO DE MOTOR TRIFASICO DE 5 HP."]
[1362,"08 DE MAYO DE 2019","PAULINA AGUILAR ENCISO",{"v":2000,"d":"$2,000.00"},"PRESTAMO PERSONAL A EMPLEADO SAMAPA "]
[1363,"09 DE MAYO DE 2019","MARCELO MARTINEZ NOLASCO",{"v":15014.57,"d":"$15,014.57"},"MATERIAL SOLICITADO PARA ALMACEN Y REPARACIONES DE FUGAS EN LAS DIFERENTES LOCALIDADES DEL MUNICIPIO"]
[1364,"09 DE MAYO DE 2019","EMILIO GONZALEZ DELGADILLO",{"v":1269.04,"d":"$1,269.04"},"GASTOS A COMPROBAR (PAGO DE INTERNET Y TELEFONIA) DE OFICINA SAMAPA"]
[1365,"13 DE MAYO DE 2019","ALBERTO HERNANDEZ VELAZQUEZ",{"v":17400,"d":"$17,400.00"},"REPARACION GENERAL DE  MOTOR A VEHICULO NISSAN ASIGNADO A SAMAPA"]
[1366,"14 DE MAYO DE 2019","EMILIO GONZALEZ DELGADILLO",{"v":19696,"d":"$19,696.00"},"COMPLEMENTO DE  NOMINA CORRESPONDIENTE A PRIMER QUINCENA DE MAYO 2019 ( PERSONAL QUE NO CUENTA CON TARJETA DE COBRO)"]
[1367,"15 DE MAYO DE 2019","MARCELO MARTINEZ NOLASCO",{"v":17531.9,"d":"$17,531.90"},"MATERIAL SOLICITADO PARA ALMACEN SAMAPA"]
[1368,"15 DE MAYO DE 2019","JOSE MANUEL SANCHEZ TEUTLE",{"v":2000,"d":"$2,000.00"},"PRESTAMO PERSONAL A EMPLEADO SAMAPA "]
[1369,"16 DE MAYO DE 2019","MARTIN ESPARZA CLAUDIO",{"v":3000,"d":"$3,000.00"},"PRESTAMO PERSONAL A EMPLEADO SAMAPA "]
[1370,"16 DE MAYO DE 2019","FRANCISCO CORTES SANDOVAL",{"v":485000,"d":"$485,000.00"},"ANTICIPO PARA COLECTOR PLUVIAL CON RED SANITARIA E HIDRAULICA , EN TRAMO DE 144.5 MTS. EN CALLE HIDALGO DE ESTA CABECERA MUNICIPAL"]
[1371,"17 DE MAYO DE 2019","ALBERTO HERNANDEZ VELAZQUEZ",{"v":6612,"d":"$6,612.00"},"AFINACION Y CAMBIO DE 2 CRUCETAS ACAMION TIPO VACTOR"]
[1372,"17 DE MAYO DE 2019","JOSE ANTONIO TELLEZ",{"v":3000,"d":"$3,000.00"},"PRESTAMO PERSONAL A EMPLEADO SAMAPA"]
[1373,"17 DE MAYO DE 2019","EMILIO GONZALEZ DELGADILLO",{"v":308.91,"d":"$308.91"},"GASTOS A COMPROBAR ( PRODUCTOS DE LIMPIEZA PARA OFICINAS SAMAPA)"]
[1374,"17 DE MAYO DE 2019","EMILIO GONZALEZ DELGADILLO",{"v":800.01,"d":"$800.01"},"GASTOS A COMPROBAR (TAC CRANEO SIMPLE A EMPLEADO SAMAPA)"]
[1375,"21 DE MAYO DE 2019","RAUL PEREZ LAZCANO",{"v":3000,"d":"$3,000.00"},"PRESTSMO PERSONAL A EMPLEADO SAMAPA"]
[1376,"21 DE MAYO DE 2019","EMILIO GONZALEZ DELGADILLO",{"v":2264.4,"d":"$2,264.40"},"GASTOS A COMPROBAR ( PAPELERIA PARA OFICINAS SAMAPA)"]
[1377,"21 DE MAYO DE 2019","MIGUEL ANGEL ZARAGOZA ZARAGOZA",{"v":3000,"d":"$3,000.00"},"PRESTAMO PERSONAL A EMPLEADO SAMAPA"]
[1378,"21 DE MAYO DE 2019","CANCELADO","CANCELADO","CANCELADO"]
[1379,"27 DE MAYO DE 2019","JANETH ROSALINA CRUZ SANCHEZ",{"v":5000,"d":"$5,000.00"},"PRESTAMO PERSONAL A EMPLEADO SAMAPA"]
[1380,"27 DE MAYO DE 2019","LAMAS INFANTEGUILLERMO ",{"v":16240,"d":"$16,240.00"},"REPARACION DEEMBOBINADO DE MOTOR 3 HPYCAMBIO DE 2 BALEROS DE BOLAS SELLADOS, PARA BOMBA DE CARCAMO DE SABINOS I"]
[1381,"27 DE MAYO DE 2019","EMILIO GONZALEZ DELGADILLO",{"v":16469.4,"d":"$16,469.40"},"COMPLEMENTO DE  NOMINA CORRESPONDIENTE A SEGUNDA QUINCENA DE MAYO DE 2019 ( PERSONAL QUE NO CUENTAN CON TARJETA DE COBRO)"]
[1382,"27 DE MAYO DE 2019","SERGIO HERRERA ENCISO",{"v":10097.8,"d":"$10,097.80"},"MATERIAL SOLICITADO PARA ALMACEN  Y LAS DIFERENTES CUADRILLAS SAMAPA"]
[1383,"27 DE MAYO DE 2019","TUBERIAS Y CONEXIONES DEL LAGO SA DE CV",{"v":33808.64,"d":"$33,808.64"},"MATERIAL SOLICITADO PARA ALMACEN Y LAS DIFERENTES CUADRILLAS SAMAPA"]
[1384,"28 DE MAYO DE 2019","JOSE ANGEL SOTO CASAS",{"v":3000,"d":"$3,000.00"},"PRESTAMO PERSONAL A EMPLEADO SAMAPA"]
[1385,"03 DE JUNIO DE 2019","MARCELO MARTINEZ NOLASCO",{"v":27798.72,"d":"$27,798.72"},"MATERIAL SOLICITADO PARA ALMACEN Y LAS DIFERENTES CUADRILLAS DE SAMAPA"]
[1386,"03 DE JUNIO DE 2019","MARCELO MARTINEZ NOLASCO",{"v":17531.9,"d":"$17,531.90"},"MATERIAL SOLICITADO PARA ALMACEN Y LAS DIFERENTES CUADRILLAS DE SAMAPA"]
[1387,"04 DE JUNIO DE 2019","FELIPE HERRERA ENCISO",{"v":7508.68,"d":"$7,508.68"},"MATERIAL SOLICITADO PARA ALMACEN Y LAS DIFERENTES CUADRILLAS SAMAPA"]
[1388,"04 DE JUNIO DE 2019","RICARDO SANCHEZ LOPEZ",{"v":1160,"d":"$1,160.00"},"SERVICIO A MOTO BOMBA HONDA 50., 1 BALBULA DE ADMICION, 1 ESCAPE COMPLETO Y MANO DE OBRA"]
[1389,"04 DE JUNIO DE 2019","ALBERTO HERNANDEZ VELAZQUEZ",{"v":4060,"d":"$4,060.00"},"MARCHA PARA VEHICULO FORD RANGER ASIGNADO A SAMAPA Y MANO DE OBRA"]
[1390,"04 DE JUNIO DE 2019","FRANCISCO JAVIER HERRERA ENCISO",{"v":4373.2,"d":"$4,373.20"},"ACEITES Y ACCESORIOS PARA PIPAS Y VEHICULOS ASIGNADOS A SAMAPA"]
[1391,"07 DE JUNIO DE 2019","JORGUE FABIAN BESERRA LARA",{"v":2000,"d":"$2,000.00"},"PRESTAMO PERSONAL A EMPLEADO DE SAMAPA"]
[1392,"07 DE JUNIO DE 2019","MARCELO MARTINEZ NOLAZCO",{"v":23144.81,"d":"$23,144.81"},"MATERIAL SOLICITADO PARA ALMACEN Y LAS DIFERENTES CUADRILLAS DE SAMAPA"]
[1393,"10 DE JUNIO DE 2019","ALBERTO HERNANDEZ VELAZQUEZ",{"v":6032,"d":"$6,032.00"},"CAMBIO DE DUAL , LIMPIEZA A LINEAS DE CONDUCCION DE DIESSEL, CAMBIO DE FILTROS, CAMBIO DE CONEXIÓN DE DIESSEL Y MANO DE OBRA A CAMION TIPO VACTOR ASIGNADO A SAMAPA"]
[1394,"10 DE JUNIO DE 2019","MIGUEL GUTIERREZ LOZANO",{"v":6000,"d":"$6,000.00"},"4 MESES DE RENTA DE LOCAL PARA OFICINA SAMAPA EN LA LOCALIDAD DE LA CAPILLA (MARZO, ABRIL, MAYO Y JUNIO 2019)"]
[1395,"11 DE JUNIO DE 2019","JUAN FRANCISCO AVALOS HERNANDEZ",{"v":1000,"d":"$1,000.00"},"PRESTAMO PERSONAL A EMPLEADO SAMAPA"]
[1396,"11 DE JUNIO DE 2019","JOSE ALONSO ANDALON MONTES",{"v":4000,"d":"$4,000.00"},"PRESTAMO PERSONAL A EMPLEADO SAMAPA"]
[1397,"11 DE JUNIO DE 2019","EMILIO GONZALEZ DELGADILLO",{"v":4000,"d":"$4,000.00"},"PRESTAMO PERSONAL A EMPLEADO SAMAPA"]
[1398,"11 DE JUNIO DE 2019","EMILIO GONZALEZ DELGADILLO",{"v":1269,"d":"$1,269.00"},"GASTOS A COMPROBAR ( PAGO DE INTERNET Y TELEFONIA  DE OFICINA SAMAPA)"]
[1399,"12 DE JUNIO DE 2019","RODRIGO MARTINEZ VILLANUEVA",{"v":3500,"d":"$3,500.00"},"PRESTAMO PERSONAL A EMPLEADO SAMAPA ( RODRIGO MARTINEZ VILLANUEVA)"]
[1400,"2019-06-12","ALEJANDRO MARIA LAZCANO",{"v":3000,"d":"$3,000.00"},"PRESTAMO PERSONAL A EMPLEADO SAMAPA ( ALEJANDRO MARIA LAZCANO)"]
[1401,"2019-06-13","EMILIO GONZALEZ DELGADILLO",{"v":19080.2,"d":"$19,080.20"},"COMPLEMENTO DE NOMINA CORRESPONDIENTE A PRIMER QUINCENA DE JUNIO 2019 ( PERSONAL QUE NO CUENTA CON TARJETA DE COBRO)"]
[1402,"2019-06-14","JOSE DANIEL REYNA NUÑEZ",{"v":2000,"d":"$2,000.00"},"PRESTAMO PERSONAL AEMPLEADO SAMAPA ( JOSE DANIEL REYNA NUÑEZ)","RIO ARMERIA # 14","VALLE DE LOS SABINOS"]
[1403,"2019-06-14","ALBERTO HERNANDEZ VELAZQUEZ",{"v":7308,"d":"$7,308.00"},"REPARACION DE SUSPENSIÓN EN GENERAL A CAMIONETA NISSAN ESTAQUITAS ASIGNADA A SAMAPA"]
[1404,"2019-06-19","LAMAS INFANTE GUILLERMO",{"v":16240,"d":"$16,240.00"},"REPARACION DE EMBOBINADO DE MOTOR TRIFASICO DE 5 HP, CAMBIO DE DOS BALEROS DE BOLAS, ACEITE DIELECTRICO, TRABAJO DE TOMO POR REPARACION DE IMPULSOR PARA BOMBA DE CARCAMO DE SABINOS I"]
[1405,"2019-06-19","KENIA MARISOL CORONA COVARRUBIAS",{"v":2952.2,"d":"$2,952.20"},"FINIQUITO A PERSONA QUE SE ENCONTRABA EN DIRECCION ADMINISTRATIVA COMO CAJERA"]
[1406,"2019-06-21","EMILIO GONZALEZ DELGADILLO",{"v":2770.01,"d":"$2,770.01"},"2 LLANTAS R14 LT BLACKSTONE DE 1ra, PARA VEHICULO ASIGNADO A SAMAPA"]
[1407,"2019-06-25","EMILIO GONZALEZ DELGADILLO",{"v":9800,"d":"$9,800.00"},"GASTOS A COMPROBAR (BOMBA SUMERGIBLE 1 HP PARA POZO DE LA LOCALIDAD DE BUENAVISTA)"]
[1408,"2019-06-25","EMILIO GONZALEZ DELGADILLO",{"v":5400.03,"d":"$5,400.03"},"GASTOS A COMPROBAR (INTERRUPTOR TERMOMAGNETICO SENTRON FXD 225A CON ZAPATA S, PARA POZO DE FRACC. PUERTA DEL SOL)"]
[1409,"2019-06-25","MARCO ANTONIO RAMIREZ BREVO","CANCELADO","SERVICIO DE RETROEXCAVADORA PARA CORTE DE TOMAS Y LIMPIEZA EN FRACC. BUENAVISTA"]
[1410,"2019-06-25","CLEMENTE VELAZQUEZ CERVANTES",{"v":1000,"d":"$1,000.00"},"PRESTAMO PERSONAL A EMPLEADO SAMAPA"]
[1411,"2019-06-26","MARCO ANTONIO RAMIREZ BRAVO",{"v":9280,"d":"$9,280.00"},"SERVICIO DE RETROEXCAVADORA PARA LIMPIEZA Y CORTES EN FRACCIONAMIENTO BUENAVISTA"]
[1412,"2019-06-26","MANUEL GONZALEZ GUZMAN",{"v":1700,"d":"$1,700.00"},"HECHURA E INSTALACION DE CAJA  PARA LA LUZ EN DEPOSITO DE LA GIGANTERA EN LA LOCALIDAD DE BUENAVISTA"]
[1413,"2019-06-27","JESUS ALEJANDRO FLORES BERNARDO",{"v":44653.8,"d":"$44,653.80"},"COMPLEMENTO DE NOMINA CORRESPONDIENTE A SEGUNDA QUINCENA DE JUNIO 2019 ( PERSONAL QUE DEBE FIRMA DE NOMINA)"]
[1414,"2019-06-27","ALEJANDRO GARCIA RUIZ",{"v":1500,"d":"$1,500.00"},"PRESTAMO PERSONAL A EMPLEADO SAMAPA (ALEJANDRO GARCIA RUIZ)","MORELOS 122","IXTLAHUACAN"]
[1415,"2019-06-28","FRANCISCO ROSALES GONZALEZ",{"v":742.4,"d":"$742.40"},"GASTOS A COMPROBAR ( 8 IMPRESION DE PLANOS B/N Y 500 FOTO COPIA B/N OFICIO MAS DE 100 PARA TRABAJOS DE  SAMAPA) "]
[1416,"2019-06-28","RITA ZUÑIGA  LOPEZ",{"v":3000,"d":"$3,000.00"},"PRESTAMO PERSONAL A EMPLEADO SAMAPA (RITA ZUÑIGA LOPEZ)"]
[1417,"2019-07-01","VICTOR ADRIAN MARTINEZ MARTINEZ",{"v":4489.2,"d":"$4,489.20"},"CAMBIO DE BOMBA Y MANGUERA PARA GASOLINA, POLEA TENSORA,CHICOTE PARA PALANCA DE VELOCIDADES A VEHICULO RANGER ASIGNADO A SAMAPA"]
[1418,"2019-07-03","ALBERTO HERNANDEZ VELAZQUEZ",{"v":10150,"d":"$10,150.00"},"CAMBIO DE 2 RIELES SOPORTE DE MADERA A TANQUE, ABRAZADERAS PARA SUJETAR RIELES Y CAMBIO DE 2 CRUCETAS DE LA FLECHA CARDAL Y MANO DE OBRA A PIPA DE 10,000 LTS ,ASIGNADA A SAMAPA"]
[1419,"2019-07-03","ALBERTO HERNANDEZ VELAZQUEZ",{"v":7888,"d":"$7,888.00"},"REPARACION DE SUSPENSIÓN A PIPA MERCEDES BENZ DE 10,000 LTS. ASIGNADA A SAMAPA"]
[1420,"2019-07-03","EMILIO GONZALEZ DELGADILLO",{"v":1199.04,"d":"$1,199.04"},"GASTOS A COMPROBAR ( PAGO DE TELEFONIA POR CABLE E INTERNET)"]
[1421,"2019-07-03","ANA MARIA FLORES SERRANO",{"v":1724,"d":"$1,724.00"},"INTERRUPTOR ELECTRICO Y ACCESORIOS Y BASE DE MEDIDOR PARA POZO # 1 DE ESTA CABECERA MUNICIPAL"]
[1422,"2019-07-03","CESAR EUGENIO BLANCARTE MENDEZ",{"v":5100,"d":"$5,100.00"},"3 VIAJES DE JAL PARA REPARACIONES DE FUGAS EN FRACCIONAMIENTO BUENAVISTA"]
[1423,"2019-07-04","JOSE LUIS ZARATE NAVARRO",{"v":8030.68,"d":"$8,030.68"},"CAMBIO DE SENSORES A PIPA INTERNACIONAL ASIGNADA A SAMAPA"]
[1424,"2019-07-08","RIVERA TORRES JESSICA MONTSERRAT",{"v":115652,"d":"$115,652.00"},"DESINSTALACION DE EQUIPO DE BOMBEO CON COLUMNA DE 6\" E INSTALACION DE TUBERIA DE 10\" DE DIAMETRO RANURADO TIPO CANASTILLA,CORTAR Y SOLDAR OREJAS PARA SUJETAR TUBO DE ADEME EN POZO # 1 DE IXTLAHUACAN"]
[1425,"2019-07-09","FRANCISCO JAVIER HERRERA ENCISO",{"v":5917.16,"d":"$5,917.16"},"ACEITES Y ACCESORIOS PARA VEHICULOS Y PIPAS ASIGNADOS A SAMAPA"]
[1426,"2019-07-15","EMILIO GONZALEZ DELGADILLO",{"v":30416,"d":"$30,416.00"},"COMPLEMENTO DE NOMINA CORRESPONDIENTE AL PRIMER QUINCENA DE JULIO DE 2019 ( PERSONAL QUE NO CUENTA CON TARJETA DE COBRO)"]
[1427,"2019-07-19","RIVERA TORRES JESSICA MONTSERRAT",{"v":50000,"d":"$50,000.00"},"ANTICIPO DE INSTALACION DE EQUIPO DE BOMBEO CON MOTOR NUEVO DE 50 HP Y BOMBA REPARADA Y COLUMNA DE 5\" DE DIAMETRO, TRASLADO DE GRUA Y MANO DE OBRA"]
[1428,"2019-07-25","RIVERA TORRES JESSICA MONTSERRAT",{"v":47440,"d":"$47,440.00"},"PAGO TOTAL DE INSTALACION DE EQUIPO DE BOMBEO CON MOTOR NUEVO DE 50 HP Y BOMBA REPARADA Y COLUMNA DE 5\" DE DIAMETRO, TRASLADO DE GRUA Y MANO DE OBRA"]
[1429,"2019-08-01","JESUS ALEJANDRO FLORES BERNARDO",{"v":36467.6,"d":"$36,467.60"},"COMPLEMENTO DE NOMINA CORRESPONDIENTE A SEGUNDA QUINCENA DEL MES DE JULIO DE 2019 ( PERSONAL QUE NO CUNTA CON TARJETA DE COBRO)"]
[1430,"2019-08-01","JESUS ALEJANDRO FLORES BERNARDO",{"v":2927.59,"d":"$2,927.59"},"GASTOS A COMPROBAR (PAPELERIA PARA  LAS DIFERENTES OFICINAS SAMAPA)"]
[1431,"2019-08-01","JESUS ALEJANDRO FLORES BERNARDO",{"v":2770.01,"d":"$2,770.01"},"GASTOS A COMPROBAR (2 LLANTAS R14 PARA VEHICULO CHEVROLET LUV ASIGNDA A SAMAPA)"]
[1432,"2019-08-02","FELIPE HERRERA ENCISO",{"v":7647.88,"d":"$7,647.88"},"MATERIAL SOLICITADO PARA ALMACEN Y LAS DIFERENTES CUADRILLAS SAMAPA"]
[1433,"2019-08-02","SERGIO HERRERA ENCISO",{"v":3932.4,"d":"$3,932.40"},"MATERIAL SOLICITADO PARA ALMACEN Y LAS DIFERENTES CUADRILLAS SAMAPA"]
[1434,"2019-08-02","JOSE RAMON MENDEZ GUTIERREZ",{"v":4000,"d":"$4,000.00"},"PRESTAMO PERSONAL A EMPLEADO SAMAPA (JOSE RAMON MENDEZ GUTIERREZ)"]
[1435,"2019-08-06","RIVERA TORRES JESSICA MONTSERRAT",{"v":1624,"d":"$1,624.00"},"SERVICIO DE BAJAR Y SUBIR CUCHILLAS PARA INSTALACION DE BASE SOKET DE MEDICION DE 200 AMP. DE 4 PUNTAS PARA POZO # 2 DE AGUILILLAS"]
[1436,"2019-08-06","RIVERA TORRES JESSICA MONTSERRAT",{"v":17864,"d":"$17,864.00"},"DESINSTALACION DE EQUIPO DE BOMBEO DAÑADO POR ARENA E INSTALACION DE EQUIPO DE BOMBEO TIPO  ROBUSTA , CONEXIÓN DE MUFA ELECTRICA Y PUESTA EN MARCHA EN POZO # 2 NUEVO DE LA CAPILLA"]
[1437,"2019-08-06","RIVERA TORRES JESSICA MONTSERRAT",{"v":97440,"d":"$97,440.00"},"ANTICIPO DE PAGO A FACTURAS CON FOLIO 480,456,476,479,475,474,478,477"]
[1438,"2019-08-06","RIVERA TORRES JESSICA MONTSERRAT",{"v":1624,"d":"$1,624.00"},"SERVICIO DE BAJAR Y SUBIR CUCHILLAS PARA INSTALACION DE BASE SOKET DE MEDICION DE 200 AMP. DE 4 PUNTAS PARA POZO # 1 DE ESTA CABECERA MUNICIPAL"]
[1439,"2019-08-06","MARTHA ELIZABETH MUÑOZ GUTIERREZ",{"v":19014.58,"d":"$19,014.58"},"MATERIAL SOLICITADO PARA ALMACEN Y LAS DIFERENTES CUADRILLAS SAMAPA"]
[1440,"2019-08-06","PABLO BERNARDO ALDANA",{"v":2600,"d":"$2,600.00"},"PRESTAMO PERSONAL A EMPLEADO SAMAPA ( PABLO BERNARDO ALDANA)","CUAUHTEMOC 242","IXTLAHUACAN"]
[1441,"2019-08-13","RUBEN ROJAS BARAJAS",{"v":4000,"d":"$4,000.00"},"PRESTAMO PERSONAL A EMPLEADO SAMAPA (RUBEN ROJAS BARAJAS)","COLON # 98","IXTLAHUACAN "]
[1442,"2019-08-13","ALBERTO HERNANDEZ VELAZQUEZ",{"v":13838.8,"d":"$13,838.80"},"REPARACION A PIPA MERCEDEZ (COMPRESOR DEL AIRE, CAMBIO DE 1 VALVULA REPARTIDORA DE AIRE, 1 DE LLENADO DE AIRE, MANGUERA DEL AIRE Y MANO DE OBRA)"]
[1443,"2019-08-14","EMILIO GONZALEZ DELGADILLO",{"v":32692.6,"d":"$32,692.60"},"COMPLEMENTO DE NOMINA CORRESPONDIENTE A PRIMER QUINCENA DEL MES DE AGOSTO DE 2019 ( PERSONAL QUE NO CUENTA CON TARJETA DE COBRO)"]
[1444,"2019-08-16","ANTONIO FLORES VILLA",{"v":1000,"d":"$1,000.00"},"PRESTAMO PERSONAL A EMPLEADO SAMAPA ( ANTONIO FLORES VILLA)","ACUEDUCTO 28","LAS AGUILILLAS"]
[1445,"2019-08-16","PEDRO ANTONIO VAZQUEZ AGUILAR",{"v":5777,"d":"$5,777.00"},"FINIQUITO A PERSONA QUE SE ENCONTRABA COMO ADMINISTRADOR EN AREA ADMINISTRATIVA"]
[1446,"2019-08-23","ALBERTO HERNANDEZ VELAZQUEZ",{"v":16936,"d":"$16,936.00"},"REPARACION DE CLUTCH Y SUSPENSIÓN A CAMIONETA FORD RANGER ASIGNADA A SAMAPA"]
[1447,"2019-08-23","EMILIO GONZALEZ DELGADILLO",{"v":17691.68,"d":"$17,691.68"},"GASTOS A COMPROBAR ( MATERIAL SOLICITADO PARA ALMACEN Y REPARACION DE FUGAS EN LAS DIFERENTES LOCALIDADES DE ESTA CABECERA MUNICIPAL)"]
[1448,"2019-08-26","RIVERA TORRES JESSICA MONTSERRAT",{"v":204194.8,"d":"$204,194.80"}," PAGO TOTAL DE FACTURAS CON FOLIO 480,456,476,479,475,474,478,481 Y 477"]
[1449,"2019-08-27","EMILIO GONZALEZ DELGADILLO",{"v":2468.08,"d":"$2,468.08"},"GATOS A COMPROBAR ( PAGO DE TELEFONIA E INTERNET DEL MES DE JULIO Y AGOSTO DE 2019)"]
[1450,"2019-08-27","ALBERTO HERNANDEZ VELAZQUEZ",{"v":8932,"d":"$8,932.00"},"SERVICIO DE AFINACION PARA VEHICULOS NISSAN ESTAQUITAS, CHEVY LUV Y RANGER ASIGNADOS A SAMAPA"]
[1451,"2019-08-27","MARCO ANTONIO RAMIREZ BRAVO","CANCELADO","REPARACION DE RED DE AGUA EN EL MUNICIPIO DE IXTLAHUACAN"]
[1452,"2019-08-27","MARCO ANTONIO RAMIREZ BRAVO",{"v":9976,"d":"$9,976.00"}," 20 HORAS DE RETROEXCAVADORA PARA REPARACION DE RED DE AGUA EN EL MUNICIPIO DE IXTLAHUACAN"]
[1453,"2019-08-27","LAMAS INFANTE GUILLERMO",{"v":6701.32,"d":"$6,701.32"},"BOMBA PARA AGUA CON SOLIDOS EN SUSPENSION, MONOFASICA CON FLOTADOR MODELO SE3ME100F-F"]
[1454,"2019-08-27","LAMAS INFANTE GUILLERMO",{"v":16240,"d":"$16,240.00"}]
[1455,"2019-08-27","TUBERIAS Y CONEXIONES DEL LAGO SA DE CV",{"v":26608.62,"d":"$26,608.62"},"MATERIAL SOLICITADO PARA ALMACEN Y REPARACIONES DE FUGAS EN LAS DIFERENTES LOCALIDADES DE ESTA CABECERA MUNICIPAL"]
[1456,"2019-08-27","TUBERIAS Y CONEXIONES DEL LAGO SA DE CV",{"v":8981.65,"d":"$8,981.65"},"MATERIAL SOLICITADO PARA ALMACEN Y REPARACIONES DE FUGAS EN LAS DIFERENTES LOCALIDADES DE ESTA CABECERA MUNICIPAL"]
[1457,"2019-08-27","MUNICIPIO DE IXTLAHUACAN DE LOS MEMBRILLOS JALISCO",{"v":17737.59,"d":"$17,737.59"},"24 SILLAS PARA OFICINA SAMAPA Y TRASLADO"]
[1458,"2019-08-28","EMILIO GONZALEZ DELGADILLO",{"v":24070.4,"d":"$24,070.40"},"COMPLEMENTO DE NOMINA CORRESPONDIENTE A SEGUNDA QUINCENA DE AGOSTO DE 2019 ( PERSONAL QUE NO CUENTA CON TARJETA DE COBRO)"]
[1459,"2019-08-28","JESUS ARMANDO LOPEZ HERNANDEZ",{"v":1460.8,"d":"$1,460.80"},"FINIQUITO A PERSONA QUE SE ENCONTRABA COMO FONTANERO EN AREA TECNICA"]
[1460,"2019-08-28","JESUS ALEJANDRO FLORES ARREOLA",{"v":2531,"d":"$2,531.00"},"FINIQUITO A PERSONA QUE SE ENCONTRABA COMO FONTANERO EN AREA TECNICA"]
[1461,"2019-08-28","LUIS GERARDO ARREOLA PALACIOS",{"v":2974.8,"d":"$2,974.80"},"FINIQUITO A PERSONA QUE SE ENCONTRABA COMO FONTANERO EN AREA TECNICA"]
[1462,"2019-08-28","MIGUEL ANGEL ZARAGOZA ZARAGOZA",{"v":2000,"d":"$2,000.00"},"PRESTAMO PERSONAL A EMPLEADO SAMAPA ( MIGUEL ANGEL ZARAGOZA ZARAGOZA)"]
[1463,"2019-08-28","RIVERA TORRES JESSICA MONTSERRAT",{"v":156600,"d":"$156,600.00"},"SUMINISTRO Y COLOCACION DE BANCO DE CAPACITOR PARA CORRECCION DE FACTOR DE POTENCIA"]
[1464,"2019-08-29","JOSE DANIEL REYNA NUÑEZ",{"v":2000,"d":"$2,000.00"},"PRESTAMO PERSONAL A EMPLEADO SAMAPA","RIO ARMERIA # 14","SABINOS I"]
[1465,"2019-08-29","JOSE MANUEL SANCHEZ TEUTLE",{"v":2000,"d":"$2,000.00"},"PRESTAMO PERSONAL A EMPLEADO SAMAPA","RIO PURIFACACION # 30","SABINOS I"]
[1466,"2019-08-30","LAMAS INFANTE GUILLERMO",{"v":3712,"d":"$3,712.00"},"CAMBIO DE 7 METROS DE CABLE SUMERGIBLE Y SELLO PASA CABLEA BOMBA SUMERGIBLE TIPO LODERA DE PTAR DE FRACC. SABINOS I"]
[1467,"2019-08-30","EMILIO GONZALEZ DELGADILLO",{"v":1616.32,"d":"$1,616.32"},"GASTOS A COMPROBAR ( PAPELERIA Y AGUA )"]
[1468,"2019-08-30","KARLA BETEL GARIBAY AGUIRRE","CANCELADO","PRESTAMO PERASONAL A EMPLEASO SAMAPA"]
[1469,"2019-08-30","FELIPE HERRERA ENCISO",{"v":19992.14,"d":"$19,992.14"},"MATERIAL SOLICATADO PARA ALMACEN"]
[1470,"2019-09-02","EMILIO GONZALEZ DELGADILLO",{"v":26186,"d":"$26,186.00"},"(GASTOS A COMPROBAR) MATERIAL SOLICITADO PARA ALMACEN Y REPARACION DE FUGAS EN LAS DIFERENTES LOCALIDADES "]
[1471,"2019-09-03","SERVICIOS Y PRODUCTOS PRODEC SA DE CV","CANCELADO","20 CONECTORES ( DISEÑO ROYTRONIC TM) CON O-RING. PARA POZOS DE LAS DIFERENTES LOCALIDADES DE ESTA CABCERA MUNICIPAL"]
[1472,"2019-09-03","ALBERTO HERNANDEZ VELAZQUEZ",{"v":18560,"d":"$18,560.00"},"REPARACION DE EMBOBINADO DEL MOTOR TRIFASICO DE 10 HP, CAMBIO DE DOS BALEROS DE BOLAS, SELLO PASA CABLES, SELLOS MECANICOS DE SILICON , ACEITE DILETRICO ,TRABAJO DE TORNO, CABLE REDONDO SUMERGIBLE PARA BOMBA  DE CARCAMO"]
[1473,"2019-09-03","RAUL PEREZ LAZCANO",{"v":3000,"d":"$3,000.00"},"PRESTAMO PERSONAL A EMPLEADO SAMAPA","LOMA VERDE # 16 A","IXTLAHUACAN DE LOS MEMBRILLOS"]
[1474,"2019-09-09","JOSE DE JESUS FLORES SALAZAR",{"v":2000,"d":"$2,000.00"},"PRESTAMO PERSONAL A EMPLEADO SAMPA","RIO ATENGO # 40","VALLE DE LOS SABINOS"]
[1475,"2019-09-09","JOSE REGALADO MELENDREZ",{"v":1360,"d":"$1,360.00"},"REPARACION A MOTOCICLETA ADSCRITA A LA LOCALIDAD DE ATEQUIZA"]
[1476,"2019-09-09","FELIPE GONZALEZ CERVANTES",{"v":5000,"d":"$5,000.00"},"PRESTAMO PERSONAL A EMPLEADO SAMAPA (FELIPE GONZALEZ CERVANTES)"]
[1477,"2019-09-09","FELIPE HERRERA ENCISO",{"v":5740.84,"d":"$5,740.84"},"MATERIAL SOLICITADO PARA ALMACEN TY LAS DIFERENTES CUADRILLAS SAMAPA"]
[1478,"2019-09-10","EMILIO GONZALEZ DELGADILLO",{"v":1299.23,"d":"$1,299.23"},"GASTOS A COMPROBAR ( AGUA Y PAPELERIA PARA OFICINA SAMAPA)"]
[1479,"2019-09-10","MARTIN ALBERTO ENCISO DIAZ",{"v":600,"d":"$600.00"},"SOLDADURA A MOTOCAJA ASIGNADA A SAMAPA"]
[1480,"2019-09-11","JUAN FRANCISCO AVALOS HERNANDEZ",{"v":1000,"d":"$1,000.00"},"PRESTAMO PERSONAL A EMPLEADO SAMAPA"]
[1481,"2019-09-11","PERLA ABIGAYL ASCENCIO SANCHEZ",{"v":1000,"d":"$1,000.00"},"PRESTAMO PERSONAL A EMPLEADO SAMAPA"]
[1482,"2019-09-11","CLEMENTE VELAZQUEZ CERVANTES",{"v":1000,"d":"$1,000.00"},"PRESTAMO PERSONAL A EMPLEADO SAMAPA"]
[1483,"2019-09-11","EMILIO GONZALEZ DELGADILLO",{"v":17563,"d":"$17,563.00"},"COMPLEMENTO DE NOMINA CORRESPONDIENTE A PRIMER QUINCENA DEL MES DE SEPTIEMBRE DE 2019 ( PERSONAL QUE NO CUENTA CON TARJETA DE COBRO)"]
[1484,"2019-09-11","MARIA ELENA ALVAREZ HERNANDEZ",{"v":6392.4,"d":"$6,392.40"},"FINIQUITO A PERSONA QUE SE ENCONTRABA COMO CAJERA EN AREA ADMINISTRATIVA"]
[1485,"2019-09-11","KAREN NATHALI CORTES ROJAS",{"v":2914.8,"d":"$2,914.80"},"FINIQUITO A PERSONA QUE SE ENCONTRABA COMO NOTIFICADORA EN AREATECNICA"]
[1486,"2019-09-11","TANIA KARINA TAVARES GUTIERREZ",{"v":4629.8,"d":"$4,629.80"},"FINIQUITO A PERSONA QUE SE ENCONTRABA COMORESPONSABLE DE SANEAMIENTO  EN AREATECNICA"]
[1487,"2019-09-13","RIVERA TORRES JESSICA MONTSERRAT",{"v":98849.82,"d":"$98,849.82"},"DESINSTALACION DE QUIPO DE BOMBEO Y COLOCACION DE SUMINISTRO DE MOTOR DE 60 HP 460 VOLTS MARCA ALTAMIRA E INSTALACION DE VIMETICO TIPO DONAS,CONEXIÓN DE MUFA ELECTRICA E INSTALACION DE EQUIPO DE BOMBEO EN POZO DE LA CAÑADA"]
[1488,"2019-09-13","RIVERA TORRES JESSICA MONTSERRAT",{"v":44549.8,"d":"$44,549.80"},"QUITAR TAPON EN POZO QUE OBSTRUIA LA INSTALACION DEL EQUIPO DE BOMBEO Y AFORO PARA CHECAR NIVELES, EN UNIDAD DEPORTIVA DE ESTA CABECERA MUNICIPAL"]
[1489,"2019-09-18","EMILIO GONZALEZ DELGADILLO",{"v":21234.78,"d":"$21,234.78"},"GASTOS A COMPROBAR ( MATERIAL SOLICITADO PARA ALMACEN Y LAS DIFERENTES CUADRILLAS SAMAPA)"]
[1490,"2019-09-18","RIVERA TORRES JESSICA MONTSERRAT",{"v":62002,"d":"$62,002.00"},"DESINSTALACION DE EQUIPO DE BOMBEO  REPARACION DE MOTOR Y  REPARACION DE BOMBA  MARCA ALTAMIRA DE UNA CAPACIDAD DE 40 HP, CONEXIÓN DE MUFA ELECTRICA Y PUESTO EN MARCHA EN POZO DE SABINOS III"]
[1491,"2019-09-18","CESAR EUGENIO BLANCARTE MENDEZ",{"v":3200,"d":"$3,200.00"},"2 VIAJES DE JAL PARA ALMACEN Y REPARACIONES DE FUGAS EN EL MUNICIPIO"]
[1492,"2019-09-20","EMILIO GONZALEZ DELGADILLO",{"v":2655.73,"d":"$2,655.73"},"GASTOS A COMPROBAR (PAPELERIA PARA LAS DIFERENTES OFICINAS SAMAPA)"]
[1493,"2019-09-20","FRANCISCO JAVIER HERRERA ENCISO",{"v":1252.8,"d":"$1,252.80"},"LLANTA PARA MOTO, LLANTA USADA PARA CAMIONETA, MONTAJE Y ACEITE DE MOTOR."]
[1494,"2019-09-23","FELIPE HERRERA ENCISO",{"v":12684.6,"d":"$12,684.60"},"2700 TAPONES HEMBRA DE 1/2 POLIMEX PARA CORTES DE TOMAS Y 3 FUSIBLE LISTON DE 3 AMP"]
[1495,"2019-09-26","JUAN MANUEL MENDOZA ALCANTAR",{"v":2084,"d":"$2,084.00"},"FINIQUITO A PERSONA QUE SE ENCONTRABA EN AREA TECNICA COMO OPERADOR DE FUENTE DE ABASTECIMIENTO"]
[1496,"2019-09-26","EMILIO GONZALEZ DELGADILLO",{"v":50725.4,"d":"$50,725.40"},"COMPLEMENTO DE NOMINA CORRESPONDIENTE A SEGUNDA QUINCENA DEL MES DE SEPTIEMBRE DE 2019 ( PERSONAL QUE NO CUENTA CON TARJETA DE COBRO)"]
[1497,"2019-09-27","FELIPE HERRERA ENCISO",{"v":3068.2,"d":"$3,068.20"},"MATERIAL SOLICITADO PARA ALMACEN Y LAS DIFERENTES CUADRILLAS SAMAPA"]
[1498,"2019-09-27","EMILIO GONZALEZ DELGADILLO",{"v":1199.02,"d":"$1,199.02"},"GASTOS A COMPROBAR ( PAGO DE TELEFONIA E INTERNET DE OFICINAS SAMAPA)"]
[1499,"2019-09-27","SERVICIOS Y PRODUCTOS PRODEC S.A. DE C.V.",{"v":5254.8,"d":"$5,254.80"},"10 TAMBOR BOLA CHECK PARA DOSIFICADORA LMI MIL TON ROY NP # 37338 PARA LAS DIFERENTES FUENTES DE ABASTECIMIENTO DEL MUNICIPIO"]
[1500,"2019-09-30","CLEMENTE VELAZQUEZ CERVANTES",{"v":1000,"d":"$1,000.00"},"PRESTAMO PERSONAL A EMPLEADO SAMAPA DE AREA TECNICA","20 DE NOVIEMBRE # 56","IXTLAHUACAN DE LOS MEMBRILLOS"]
[1501,"2019-10-01","MARTIN ESPARZA CLAUDIO ",{"v":1500,"d":"$1,500.00"},"PRESTAMO PERSONAL A EMPLEADO SAMAPA DE AREA TECNICA","LOMAS EVEREST PTE # 66","RINCONADAS LAS LOMAS"]
[1502,"2019-10-01","JOSE DE JESUS BAEZA CHAVEZ",{"v":960,"d":"$960.00"},"REPARACION DE MARCHA A VEHICULO FORD RANGER ASIGNADO A SAMAPA"]
[1503,"2019-10-01","EMILIO GONZALEZ DELGADILLO",{"v":4806.01,"d":"$4,806.01"},"GASTOS A COMPROBAR ( LLANTA CORBATA Y ACEITE DE MOTOR PARA PIPA MERCEDEZ ASIGNADA A LA LOCALIDAD DE LA CAPILLA)"]
[1504,"2019-10-01","EMILIO GONZALEZ DELGADILLO",{"v":649.6,"d":"$649.60"},"GASTOS A COMPROBAR ( TORNILLOS DE CENTRO Y MANO DE OBRA PARA  PIPA MERCEDEZ ASIGNADA A LA LOCALIDAD DE LA CAPILLA)"]
[1505,"2019-10-01","FELIPE HERRERA ENCISO",{"v":2959.16,"d":"$2,959.16"},"MATERIAL SOLICITADO PARA ALMACEN Y LAS DIFERENTES CUADRILLA SAMAPA"]
[1506,"2019-10-01","ANA ROSA RODRIGUEZ ALCALA",{"v":25000,"d":"$25,000.00"},"ANTICIPO DE DIAGNOSTICOS DE EFICIENCIA ELECTROMECANICA DE LAS SIGUIENTES RPU: 474 070 905 002: 474 970 500 458; 472 100 700 114; 474 070 905 002"]
[1507,"2019-10-02","FELIPE HERRERA ENCISO",{"v":24370.44,"d":"$24,370.44"},"MATERIAL SOLICITADO PARA REPARACIONES DE FUGAS EN LAS DIFERENTES LOCALIDADES DE ESTA CABECERA MUNICIPAL Y PARA ALMACEN"]
[1508,"2019-10-02","ALBERTO HERNANDEZ VELAZQUEZ",{"v":12760,"d":"$12,760.00"},"REPARACION EN GENERAL DE CLUTCH Y FRENOS A CAMION PIPA MERCEDES ASIGNADA A LA LOCALIDAD DE LA CAPILLA"]
[1509,"2019-10-03","EMILIO GONZALEZ DELGADILLO",{"v":2993.1,"d":"$2,993.10"},"GASTOS A COMPROBAR ( PAPELERIA PARA OFICINAS SAMAPA)"]
[1510,"2019-10-03","HUMBERTO MORENO MARTINEZ",{"v":1500,"d":"$1,500.00"},"PRESTAMO PERSONAL A EMPLEADO SAMAPA","OBREGON # 87","IXTLAHUACAN "]
[1511,"2019-10-03","JOSE ALONSO ANDALON MONTES ",{"v":3000,"d":"$3,000.00"},"PRESTAMO PERSONAL A EMPLEADO SAMAPA","RIO ARMERIA #5","SABINOS"]
[1512,"2019-10-09","EMILIO GONZALEZ DELGADILLO",{"v":1321.22,"d":"$1,321.22"},"GASTOS A COMPROBAR ( 1 TARJETA MADRE  GIGABYTE H310 INTEL S-1151 PARA EQUIPO DE COMPUTO DE OFICINA SAMAPA)"]
[1513,"2019-10-09","EMILIO GONZALEZ DELGADILLO",{"v":402.04,"d":"$402.04"},"GASTOS A COMPROBAR ( CONEXIÓN PRENSADA MACHO DE 1\" NPT PARA CAMION TIPO VACTOR ASIGANADO A SAMAPA)"]
[1514,"2019-10-09","EMILIO GONZALEZ DELGADILLO",{"v":4130.01,"d":"$4,130.01"},"GASTOS A COMPROBAR ( 1 LLANTA Y CORBATA PARA CAMION TIPO PIPA  ASIGANADO A SAMA)"]
[1515,"2019-10-10","ELVIRA ALEJANDRA GARCIA ACEVES",{"v":1500,"d":"$1,500.00"},"PRESTAMO PERSONAL A EMPLEADO SAMAPA ( ELVIRA ALEJANDRA GARCIA ACEVES)","CJON. ZENZONTLE # 25","LAS AGUILILLAS"]
{"$rows_empty":249}
[{"$nulls":6},"AREA TECNICA"]

{"sheet":"CONCEPTO DE CHEQUE CHICO","index":7,"n_rows":1,"n_cols":1,"rows_kept":1,"hidden":true}
["CONCEPTOS DE PAGO"]

{"sheet":"PROVEEDORES","index":8,"n_rows":26,"n_cols":1,"rows_kept":26}
["ARCENIO GOMEZ GUTIERREZ"]
["CFE SUMINISTRADOR DE SERVICIOS BASICOS "]
["ELECTRICA 2004 SA DE CV"]
["EMILIO GONZALEZ DELGADILLO"]
["FELICIANO GARCIA PEREZ"]
["FELIPE HERRERA ENCISO"]
["FRANCISCO JAVIER HERRERA ENCISO"]
["JOSE AGUSTIN JIMENEZ GUERRERO"]
["JESUS ALEJANDRO FLORES BERNARDO"]
["JORGE ANDRES MANCILLA CASTILLO"]
["JOSE VICENTE ROMERO RUIZ"]
["MAURO GOMEZ CORDOVA"]
["RODRIGUEZ VELASCO ALEJANDRO"]
["TUBERIAS Y CONEXIONES DEL LAGO SA DE CV"]
["SERGIO HERRERA ENCISO"]
["SERVICIOS Y PRODUCTOS PRODEC S.A. DE C.V."]
["TECNOELECTRICA NACIONAL S.A. DE C.V."]
["CINDY CACHUA VILLA"]
["ARTEMIA LOPEZ MONTER"]
["ALBERTO HERNANDEZ VELAZQUEZ"]
["COMERCIALIZADORA INDUSTRIAL DE ZAPOPAN SA DE CV"]
["RIVERA TORRES JESSICA MONTSERRAT"]
["TELEFONIA POR CABLE SA DE CV"]
["IRENE CERVANTES MANDUJANO"]
["MARCELO MARTINEZ NOLASCO"]
["LAMAS INFANTE GUILLERMO"]

{"sheet":"Transfer","index":9,"n_rows":38,"n_cols":76,"rows_kept":38,"merged":[[4,10,5,10],[12,2,12,7],[16,2,16,7],[34,2,34,3],[34,5,34,7]]}
[]
[]
[]
[]
[{"$nulls":3},"                                                                                          ",{"$nulls":6},"Numero de Cheque"]
[]
[{"$nulls":10},452036]
[]
[null,null,"                                           ",null," "]
[null,null,"      "]
[null,null,"                                                                                                                                                                                                                                                                                                                                                                                                                                                                                                                                                                                 "]
[null,"                                         ",{"$nulls":4},"      ",{"$f":"+VLOOKUP(F26,'REGISTRO DE CHEQUES'!A1:G4916,4,FALSE)","v":{"$error":"#N/A"}}]
[null,null,{"$f":"PesosMN(H12)","v":{"$error":"#VALUE!"}}]
[null,null,"                            ",null," "]
[null,"                        ","      ","                                 "," ",null,null," "]
[]
[null,null,{"$f":"+VLOOKUP(F26,'REGISTRO DE CHEQUES'!A1:G4916,5,FALSE)","v":{"$error":"#N/A"}}]
[{"$nulls":75},"Z"]
["  "]
[null,null,"            "]
[null,null,"      ",null," "]
[null,null,"     "]
[null,null,"                        "]
[null,null,"     "," "]
[null,null,"               ",null,null,"            "]
[null,null,"     ","Transferencia",null,{"$f":"+VLOOKUP(K7,'REGISTRO DE CHEQUES'!A1:G4916,1,FALSE)","v":{"$error":"#N/A"}}]
[{"$nulls":4}," "]
[null,null,"      "," ",null," ",null,"                                                                                                                                                                                                                                                                                                                                                                         "]
[null,null,"     "]
[null,null,"      "]
[null,null,"       "]
[null,null,"      "]
[null,null,"      ",null,null," "]
[null,null,"                                  ",{"$nulls":4}," "]
[null,null,"IXTLAHUACAN DE LOS MEMBRILLOS, JAL. ",null,null,{"$f":"+VLOOKUP(F26,'REGISTRO DE CHEQUES'!A1:G4916,2,FALSE)","v":{"$error":"#N/A"}}]
[null,null,"          "]
[]
["LIC ANTONIO COVARRUBIAS MEJIA"]

{"sheet":"Orden sin recibo TRANS","index":10,"n_rows":38,"n_cols":76,"rows_kept":38,"merged":[[5,10,6,10],[12,2,12,7],[16,2,16,7],[34,2,34,3],[34,5,34,7]]}
[]
[]
[]
[]
[]
[{"$nulls":3},"                                                                                          ",{"$nulls":6},"Numero de Cheque"]
[]
[]
[null,null,"                                           ",null," "]
[null,null,"      "]
[null,null,"                                                                                                                                                                                                                                                                                                                                                                                                                                                                                                                                                                                 "]
[null,"                                         ",{"$nulls":4},"      ",{"v":1520,"d":"1,520.00"}]
[null,null,{"$f":"PesosMN(H12)","v":"( UN MIL QUINIENTOS VEINTE PESOS 00/100 M.N.)"}]
[null,null,"                            ",null," "]
[null,"                        ","      ","                                 "," ",null,null," "]
[]
[null,null,"PAGO DE GASOLINA DEL LA SEMAN DEL 26 AL 31 DE ENERO DEL 2018"]
[{"$nulls":75},"Z"]
["  "]
[null,null,"            "]
[null,null,"      ",null," "]
[null,null,"     "]
[null,null,"                        "]
[null,null,"     "," "]
[null,null,"               ",null,null,"            "]
[null,null,"     ","TRANSFERENCIA",null,25369]
[{"$nulls":4}," "]
[null,null,"      "," ",null," ",null,"                                                                                                                                                                                                                                                                                                                                                                         "]
[null,null,"     "]
[null,null,"      "]
[null,null,"       "]
[null,null,"      "]
[null,null,"      ",null,null," "]
[null,null,"                                  ",{"$nulls":4}," "]
[null,null,"IXTLAHUACAN DE LOS MEMBRILLOS, JAL. ",null,null,"2018-02-03"]
[null,null,"          "]
[]
["LIC. ANTONIO COVARRUBIAS MEJIA"]

{"sheet":"orden con recibo MODF","index":11,"n_rows":43,"n_cols":9,"rows_kept":43,"merged":[[1,8,2,8],[9,1,9,6],[14,0,14,3],[19,5,19,6],[20,5,20,6],[27,5,27,6],[28,1,28,6],[29,1,29,6],[31,3,31,6],[33,2,33,6],[35,1,35,6],[39,0,39,3],[39,4,39,5],[42,3,42,5]]}
[]
[{"$nulls":8},"Numero de Cheque"]
[]
[]
[]
[]
[{"$nulls":4},"ALEJANDRO"]
[]
[{"$nulls":5},{"v":5220,"d":"5,220.00"}]
[null,{"$f":"PesosMN(F9)","v":"( CINCO MIL DOSCIENTOS VEINTE PESOS 00/100 M.N.)"}]
[]
[{"$nulls":4},"  "]
[]
[]
["IXTLAHUACAN DE LOS MEMBRILLOS ",{"$nulls":4},"2018-02-02"]
[]
[]
[]
[]
[]
["LIC. ANTONIO COVARRUBIAS MEJIA"]
[]
[{"$nulls":4},1234]
[]
[]
[]
[{"$nulls":5},{"$f":"F9","v":{"v":5220,"d":"5,220.00"}}]
[]
[null,"IXTLAHUACAN DE LOS MEMBRILLOS, JALISCO"]
[]
[null,null," "]
[null,{"$f":"F9","v":{"v":5220,"d":"5,220.00"}},null,{"$f":"B10","v":"( CINCO MIL DOSCIENTOS VEINTE PESOS 00/100 M.N.)"}]
[]
[]
[]
[null,"NOMINA"]
[]
[]
[]
["IXTLAHUACAN DE LOS MEMBRILLOS",{"$nulls":3},{"$f":"+F15","v":"2018-02-02"}]
["  "]
[]
[{"$nulls":3},{"$f":"E7","v":"ALEJANDRO"}]

{"sheet":"Hoja1","index":12,"n_rows":4,"n_cols":1,"rows_kept":4}
["CUANTO SE HA GASTADO"]
[]
[]
["ENERO"]

{"sheet":"Hoja2","index":13,"n_rows":41,"n_cols":1,"rows_kept":41}
["JOSE VICENTE ROMERO RUIZ"]
["CARLOS ORTIZ ZAMORA"]
["EMILIO GONZALEZ DELGADILLO "]
["JORGE ANDRES MANCILLA CASTILLO"]
["FELIPE HERRERA ENCISO"]
["JUAN MIGUEL TREJO ROMERO"]
["ARTEMIA LOPEZ MONTER"]
["CFE SUMINISTRADOR DE SERVICIOS BASICOS "]
["COMERCIALIZADORA INDUSTRIAL DE ZAPOPAN SA DE CV"]
["ALBERTO HERNANDEZ VELAZQUEZ"]
["RIVERA TORRES JESSICA MONTSERRAT"]
["RODRIGUEZ VELASCO ALEJANDRO"]
["TUBERIAS Y CONEXIONES DEL LAGO"]
["EFRAIN ESTRADA MEJIA"]
["JESUS ALEJANDRO FLORES BERNARDO"]
["JOSE CARLOS GUTIERREZ FLORES"]
["ANTONIO COVARRUBIAS MEJIA"]
["MAURO GOMEZ CORDOVA"]
["FELICIANO GARCIA PEREZ"]
["FRANCISCO JAVIER HERRERA ENCISO"]
["MARCO ANTONIO RAMIREZ BRAVO "]
["GONZALO BEJARANO LECHUGA"]
["JOSE ANTONIO CONTRERAS LOPEZ"]
["ALEJANDRA SANCHEZ VILLASEÑOR "]
["TUBERIAS Y CONEXIONES DEL LAGO SA DE CV"]
["MARCO ANTONIO RAMIREZ BRAVO"]
["ALEJANDRO RODRIGUEZ VELASCO"]
["GUILLERMO MORA ARANA"]
["SERGIO RAMOS REYES "]
["VAZQUEZ CORONA LETICIA"]
["RAFAEL CORTES HERNANDEZ"]
["APOLONIO BECERRA RAUDA"]
["TECNOELECTRICA NACIONAL SA DE CV"]
["RITA ZUÑIGA LOPEZ"]
["BENJAMIN ALMADA LEMUS "]
["MARIA ALONDRA BARRERA CONTRERAS"]
["ARCENIO GOMEZ GUTIEREZ"]
["RAUL PEREZ LAZCANO"]
["ELECTRICA 2004 SA DE CV"]
["RODRIGUEZ  VELASCO ALEJANDRO"]
["INGENIERIA EN EDIFICACIONES, CAMINOS Y ESTRUCTURAS SA DE CV"]